{"text_format":"1","workbook":"xlsx","n_sheets":6,"sheets":["Eingabe","Auswahl","Berechnung","Daten","Anfrage","Menü"],"not_rendered":{"charts":0,"images":26,"macros":1,"external_links":0,"defined_names":14,"comments":2,"pivot_tables":0},"unopened":[],"bounds":{"document_bytes":16777216,"sheet_cells":100000,"rows_first":2000,"rows_last":500,"rows_between":2000,"halvings":0,"cell_chars":16384,"cell_head_chars":4096},"cells_cut":0,"cells_raw":0,"read":"whole","date_system":"1900"}

{"sheet":"Eingabe","index":0,"n_rows":12,"n_cols":3,"rows_kept":12,"cut":false,"hidden":false,"merged":[]}
[]
[null,"Bitte geben Sie hier Ihre vollständige Adresse ein:"]
[]
[null,"Firma:","Musterfirma"]
[null,"Straße:","Musterstraße"]
[null,"PLZ:","07549"]
[null,"Ort:","Musterhausen"]
[]
[null,"Ansprechpartner:","Herr Muster Mustermann"]
[null,"Tel.:","0049 1234567889"]
[null,"Fax:","0049 34567654"]
[null,"Email.:","muster@muster.de"]

{"sheet":"Auswahl","index":1,"n_rows":85,"n_cols":9,"rows_kept":85,"cut":false,"hidden":false,"merged":[[1,1,1,8],[0,1,0,7]]}
[null,"Konfigurator zur Bestimmung der Schlauchfangsicherungsbauteile "]
[null,"Stand: 24.05.2013 "]
[]
[]
[null,"Eingabe Schlauchdaten:"]
[]
[]
[null,"Bezeichnung","Größe",null,null,null,"Außendurchmesser"]
[]
[]
[]
[]
[null,"Eingabe Armaturdaten:"]
[]
[]
[null,"Anschluss","Anschlussgröße"]
[]
[]
[]
[]
[null,"E-Maß","B-Maß","L-Maß",null,null,"Art.-Nr."]
[]
[]
[]
[]
[]
[]
[]
[]
[]
[]
[]
[]
[]
[]
[null,"Ausgabe Schlauchfangsicherungdaten:"]
[]
[null,"Schlauchschelle","Seillager","Fangseil","Lasche","Klettbandbinder "]
[null,{"$f":"Berechnung!C9","v":{"$error":"#N/A"}},{"$f":"Berechnung!A19","v":{"$error":"#N/A"}},{"$f":"Berechnung!H24","v":{"$error":"#N/A"}},{"$f":"Berechnung!B14","v":{"$error":"#N/A"}},{"$f":"Berechnung!E29","v":{"$error":"#N/A"}}]
[null,{"$f":"Berechnung!D9","v":{"$error":"#N/A"}},{"$f":"Berechnung!B19","v":{"$error":"#N/A"}},{"$f":"Berechnung!I24","v":{"$error":"#N/A"}},{"$f":"Berechnung!C14","v":{"$error":"#N/A"}},{"$f":"Berechnung!F29","v":{"$error":"#N/A"}}]
[]
[null,null,null,null,null,"SD: DKO/CE Anschluss, SF: SAE Anschluss"]
[null,null,null,null,null,"          Spannbereich"]
[null,null,null,null,null,"                  Bohrung-Ø Lasche"]
[null,null,null,null,null,"                                   Fangseillänge"]
[null,null,null,null,"Bestellnummer Schlauchfangsicherung Dietzel:     ",{"$f":"IF(ISERROR(Berechnung!B34),\"\",Berechnung!B34)","v":""}]
[]
[null,null,null,null,"Anzahl:     "]
[]
[null,null,null,null,null,null,"    Fügt die Konfiguration der Anfrageliste hinzu"]
[]
[]
[]
[]
[]
[]
[]
[]
[]
[]
[]
[]
[]
[]
[]
[]
[]
[]
[]
[]
[]
[]
[]
[]
[]
[]
[]
[]
[]
[]
[]
[]
[]
[]
[" "," "," "," "," "," "," "," "," "]

{"sheet":"Berechnung","index":2,"n_rows":40,"n_cols":15,"rows_kept":40,"cut":false,"hidden":false,"merged":[[23,12,23,19],[4,12,4,19]]}
["Makros"]
[]
["ODER \nSchlauchdaten","ODER\nArmaturdaten"]
[0,0]
[null,null,null,null,null,null,null,null,null,null,null,null,"Formel zur Berechnung der Fangseillänge"]
["Schlauchschelle"]
[]
["Eingabe\n Schlauchdaten","Außendurch-\nmesser","Schlauchschelle\nKurztext","Schlauchschelle\nArtikel"]
[{"$f":"IF(A4=0,Auswahl!B9&Auswahl!C9,Auswahl!G9)","v":""},{"$f":"IF(A4=0,VLOOKUP(A9,Daten!$C:$D,2,FALSE),A9)","v":{"$error":"#N/A"}},{"$f":"VLOOKUP($B$9,Daten!$F:$O,3,TRUE)","v":{"$error":"#N/A"}},{"$f":"VLOOKUP($B$9,Daten!$F:$O,4,TRUE)","v":{"$error":"#N/A"}}]
[]
["Lasche"]
[]
["Eingabe\nArmaturdaten","Lasche\nKurztext","Lasche\nArtikel"]
[{"$f":"Auswahl!B17&Auswahl!C17","v":""},{"$f":"VLOOKUP($A$14,Daten!$S:$V,3,FALSE)","v":{"$error":"#N/A"}},{"$f":"VLOOKUP($A$14,Daten!$S:$V,4,FALSE)","v":{"$error":"#N/A"}}]
[]
["Seillager"]
[]
["Seillager\nKurztext","Seillager\nArtikel"]
[{"$f":"VLOOKUP($D$9,Daten!$I:$O,5,FALSE)","v":{"$error":"#N/A"}},{"$f":"VLOOKUP($D$9,Daten!$I:$O,6,FALSE)","v":{"$error":"#N/A"}}]
[]
["Fangseil",null,null,null,null,null,null,null,null,null,null,null,null,"Legende: ","E-, L-, und B-Maße aus Dietzel Katalog (Armaturen)"]
[]
["Eingabe\n Armaturdaten","E-Maß","B-Maß","L-Maß","Seildurchmesser","Seillänge\nberechnet","Seillänge\naufgerundet","Fangseil\nKurztext","Fangseil\nArtikel"]
[{"$f":"IF(B4=0,Auswahl!B22&\"/\"&Auswahl!C22&\"/\"&Auswahl!D22,Auswahl!G22)","v":"//"},{"$f":"IF($B$4=0,Auswahl!B22,VLOOKUP(Auswahl!$G$22,Daten!$X:$AA,2,FALSE))","v":0},{"$f":"IF($B$4=0,Auswahl!C22,VLOOKUP(Auswahl!$G$22,Daten!$X:$AA,3,FALSE))","v":0},{"$f":"IF($B$4=0,Auswahl!D22,VLOOKUP(Auswahl!$G$22,Daten!$X:$AA,4,FALSE))","v":0},{"$f":"VLOOKUP($B$19,Daten!$N:$O,2,FALSE)","v":{"$error":"#N/A"}},{"$f":"IF(OR(C24<=0,D24<=0)=TRUE,\"0\",25+2*SQRT(POWER(B24,2)+POWER(45+D24,2))+2*(D24-C24)+8.5*B9)","v":"0"},{"$f":"ROUNDUP(F24,-2)","v":0},{"$f":"VLOOKUP($E$24&IF($G$24<1000,\"0\"&$G$24,$G$24),Daten!$AC:$AE,2,FALSE)","v":{"$error":"#N/A"}},{"$f":"VLOOKUP($E$24&IF($G$24<1000,\"0\"&$G$24,$G$24),Daten!$AC:$AE,3,FALSE)","v":{"$error":"#N/A"}},null,null,null,"*Seilumschlingung Schlauch (Schlaufe)"]
[]
["Klettbandbinder",null,null,null,null,null,null,null,null,null,null,null,null,"Es besteht ein direktes Verhältnis zwischen Seilumschlingung Schlauch und"]
[null,null,null,null,null,null,null,null,null,null,null,null,null,"Schlauchumfang"]
["Fassungs-\ndurchmesser","Fassungs-\numfang","Klettbandbreite","Klettbandlänge","Klettbandbinder\nKurztext","Klettbandbinder\nArtikel"]
[{"$f":"B9+3","v":{"$error":"#N/A"}},{"$f":"A29*PI()","v":{"$error":"#N/A"}},{"$f":"IF(D24*C24=0,0,IF(D24-C24<=40,25,50))","v":0},{"$f":"IF(C29=25,VLOOKUP($B$29,Daten!AH1:AK3,4,TRUE),IF(C29=50,VLOOKUP($B$29,Daten!AH4:AK8,4,TRUE),0))","v":0},{"$f":"VLOOKUP($C$29&$D$29,Daten!$AG$1:$AM$8,6,FALSE)","v":{"$error":"#N/A"}},{"$f":"VLOOKUP($C$29&$D$29,Daten!$AG$1:$AM$8,7,FALSE)","v":{"$error":"#N/A"}}]
[]
["Bestellnummer Schlauchfangsicherung Dietzel"]
[]
["Eingabe\nArmaturdaten","Bestellnummer"]
[{"$f":"Auswahl!B17","v":0},{"$f":"\"S\"&IF(OR($A$34=\"DKO_CE.standard\",$A$34=\"DKO_CE.geteilt\"),\"D\",\"F\")&\"-\"&MID(C9,8,2)&MID(C9,11,2)&\"-\"&IF(LEN($C$14)=4,MID($C$14,2,3),MID($C$14,2,4))&\"-\"&\"SL\"&MID($I$24,IF($G$24<1000,7,6),IF($G$24<1000,3,4))","v":{"$error":"#N/A"}}]
[]
[]
[]
[]
[]
[null,null,null,null,null,null,null,null,null,null,null,null,null,null,"oder:"]

{"sheet":"Daten","index":3,"n_rows":751,"n_cols":59,"rows_kept":751,"cut":false,"hidden":false,"merged":[]}
["1SC",6,{"$f":"A1&\"DN\"&B1","v":"1SCDN6"},12,null,7.5,8.5,"HASFS-008008","HASFS-029"," -",{"$f":"MID(H1,8,2)&MID(H1,11,2)","v":"0808"},"M 5","SEILLAGER KLEIN","SLK",3,null,"DKO_CE.standard","6L",{"$f":"Q1&R1","v":"DKO_CE.standard6L"},"M 12","Lasche DIN 6L","D125",null,"1.011-12-12",null,30,67,null,{"$f":"MID(AE1,4,1)&MID(AE1,6,4)","v":"30400"},"STAHLDRAHTSEIL 3MM + KUGEL 8MM","SDS3-0400KONF",null,{"$f":"AJ1&AK1","v":"25120"},0,70,25,120,"KBB25-120","KBB25-120",null,"Schellen","EK","Seillager","HK","Seile","EK","Laschen","HK","Klettband","EK",null,"1SC","DN6","DKO_CE.standard","6L","M 30","2\"","6L","3000PSI_1/2\""]
["1SC",8,"1SCDN8",14,null,8.5,9.5,"HASFS-009009","HASFS-023"," -",{"$f":"MID(H2,8,2)&MID(H2,11,2)","v":"0909"},"M 5","SEILLAGER KLEIN","SLK",3,null,"DKO_CE.standard","8L","DKO_CE.standard8L","M 14","Lasche DIN 6S/8L","D145",null,"1.011-12-16",null,34,81,null,"30500","STAHLDRAHTSEIL 3MM + KUGEL 8MM","SDS3-0500KONF",null,"25150",70,100,25,150,"KBB25-150","KBB25-150",null,"HASFS-001",null,"SLK",null,"SDS3-0400KONF",null,"D125",null,"KBB25-120",null,null,"1SN","DN8","DKM_AGM.standard","8L","M 45","3\"","8L","3000PSI_3/4\""]
["1SC",10,"1SCDN10",15.6,null,9.5,10.5,"HASFS-010010","HASFS-027"," -",{"$f":"MID(H3,8,2)&MID(H3,11,2)","v":"1010"},"M 5","SEILLAGER KLEIN","SLK",3,null,"DKO_CE.standard","10L","DKO_CE.standard10L","M 16","Lasche DIN 8S/10L","D165",null,"1.011-16-12",null,28,80,null,"30600","STAHLDRAHTSEIL 3MM + KUGEL 8MM","SDS3-0600KONF",null,"25200",100,150,25,200,"KBB25-200","KBB25-200",null,"HASFS-002",null,"SLG",null,"SDS3-0500KONF",null,"D145",null,"KBB25-150",null,null,"2SC","DN10","DKR_AGR.standard","10L","M 52",null,"10L","3000PSI_1\""]
["1SC",12,"1SCDN12",18.8,null,10.5,11.5,"HASFS-011011","HASFS-028"," -",{"$f":"MID(H4,8,2)&MID(H4,11,2)","v":"1111"},"M 5","SEILLAGER KLEIN","SLK",3,null,"DKO_CE.standard","12L","DKO_CE.standard12L","M 18","Lasche DIN 10S/12L","D185",null,"1.011-16-16",null,35,82,null,"30700","STAHLDRAHTSEIL 3MM + KUGEL 8MM","SDS3-0700KONF",null,"50150",0,100,50,150,"KBB50-150","KBB50-150",null,"HASFS-003",null,null,null,"SDS3-0600KONF",null,"D165",null,"KBB25-200",null,null,"2SN","DN12","DKO_CE.geteilt","12L","M 65",null,"12L","3000PSI_1_1/4\""]
["1SC",16,"1SCDN16",22,null,11.5,12.5,"HASFS-012012","HASFS-001","STOPFS-1414CONF",{"$f":"MID(H5,8,2)&MID(H5,11,2)","v":"1212"},"M 5","SEILLAGER KLEIN","SLK",3,null,"DKO_CE.standard","15L","DKO_CE.standard15L","M 22","Lasche DIN 14S/15L","D225",null,"1.011-16-20",null,35,96,null,"30800","STAHLDRAHTSEIL 3MM + KUGEL 8MM","SDS3-0800KONF",null,"50200",100,150,50,200,"KBB50-200","KBB50-200",null,"HASFS-004",null,null,null,"SDS3-0700KONF",null,"D185",null,"KBB50-150",null,null,"2SN-K","DN16","SAE","15L","M 78",null,"15L","3000PSI_1_1/2\""]
["1SC",19,"1SCDN19",26.1,null,12.5,13.5,"HASFS-013013","HASFS-002","STOPFS-1515CONF",{"$f":"MID(H6,8,2)&MID(H6,11,2)","v":"1313"},"M 5","SEILLAGER KLEIN","SLK",3,null,"DKO_CE.standard","18L","DKO_CE.standard18L","M 26","Lasche DIN 18L","D265",null,"1.011-20-16",null,36,89,null,"30900","STAHLDRAHTSEIL 3MM + KUGEL 8MM","SDS3-0900KONF",null,"50250",150,200,50,250,"KBB50-250","KBB50-250",null,"HASFS-005",null,null,null,"SDS3-0800KONF",null,"D205",null,"KBB50-200",null,null,"3SPC","DN19",null,"18L","M 90",null,"18L","3000PSI_2\""]
["1SC",25,"1SCDN25",33.6,null,13.5,14.5,"HASFS-014014","HASFS-003","STOPFS-1616CONF","1414","M 5","SEILLAGER KLEIN","SLK",3,null,"DKO_CE.standard","22L","DKO_CE.standard22L","M 30","Lasche DIN 20S/22L","D305",null,"1.011-20-20",null,42,96,null,"31000","STAHLDRAHTSEIL 3MM + KUGEL 8MM","SDS3-1000KONF",null,"50320",200,250,50,320,"KBB50-320","KBB50-320",null,"HASFS-006",null,null,null,"SDS3-0900KONF",null,"D225",null,"KBB50-250",null,null,"4SH","DN25",null,"22L","M 100",null,"22L","3000PSI_2_1/2\""]
["1SN",6,"1SNDN6",13.4,null,14.5,15.5,"HASFS-015015","HASFS-004","STOPFS-1717CONF","1515","M 5","SEILLAGER KLEIN","SLK",3,null,"DKO_CE.standard","28L","DKO_CE.standard28L","M 36","Lasche DIN 25S/28L","D365",null,"1.011-20-24",null,45,102,null,"31100","STAHLDRAHTSEIL 3MM + KUGEL 8MM","SDS3-1100KONF",null,"50370",250,300,50,370,"KBB50-370","KBB50-370",null,"HASFS-007",null,null,null,"SDS3-1000KONF",null,"D245",null,"KBB50-320",null,null,"4SP","DN31",null,"28L",null,null,"28L","3000PSI_3\""]
["1SN",8,"1SNDN8",15,null,15.5,16.5,"HASFS-016016","HASFS-005","STOPFS-1818CONF","1616","M 5","SEILLAGER KLEIN","SLK",3,null,"DKO_CE.standard","35L","DKO_CE.standard35L","M 45","Lasche DIN 35L","D455",null,"1.011-24-20",null,42,102,null,"31200","STAHLDRAHTSEIL 3MM + KUGEL 8MM","SDS3-1200KONF",null,"50420",300,350,50,420,"KLETTBANDBINDER 50 breit L=420 mm","KBB50-420",null,"HASFS-008",null,null,null,"SDS3-1100KONF",null,"D265",null,"KBB50-370",null,null,"6SP_560bar","DN38",null,"35L",null,null,"35L","3000PSI_3_1/2\""]
["1SN",10,"1SNDN10",17.399999999999999,null,16.5,17.5,"HASFS-017017","HASFS-006","STOPFS-1919CONF","1717","M 5","SEILLAGER KLEIN","SLK",3,null,"DKO_CE.standard","42L","DKO_CE.standard42L","M 52","Lasche DIN 38S/42L","D525",null,"1.011-24-24",null,45,102,null,"40800","STAHLDRAHTSEIL 4MM + KUGEL 10MM","SDS4-0800KONF",null," -",350,"-","-","-","-","-",null,"HASFS-009",null,null,null,"SDS3-1200KONF",null,"D305",null,null,null,null,"R13","DN51",null,"42L",null,null,"42L","6000PSI_1/2\""]
["1SN",12,"1SNDN12",20.6,null,17.5,20.5,"HASFS-018020","HASFS-007","STOPFA 2224CONF","1820","M 6","SEILLAGER KLEIN","SLK",3,null,"DKO_CE.standard","6S","DKO_CE.standard6S","M 14","Lasche DIN 6S/8L","D145",null,"1.011-24-32",null,59,134,null,{"$f":"MID(AE11,4,1)&MID(AE11,6,4)","v":"40900"},"STAHLDRAHTSEIL 4MM + KUGEL 10MM","SDS4-0900KONF",null,null,null,null,null,null,null,null,null,"HASFS-010",null,null,null,"SDS4-0800KONF",null,"D365",null,null,null,null,"R15","DN60",null,"6S",null,null,"6S","6000PSI_3/4\""]
["1SN",16,"1SNDN16",23.7,null,20.5,23.5,"HASFS-021023","HASFS-008","STOPFA 2527CONF","2123","M 6","SEILLAGER KLEIN","SLK",3,null,"DKO_CE.standard","8S",{"$f":"Q12&R12","v":"DKO_CE.standard8S"},"M 16","Lasche DIN 8S/10L","D165",null,"1.011-32-24",null,45,107,null,"41000","STAHLDRAHTSEIL 4MM + KUGEL 10MM","SDS4-1000KONF",null,null,null,null,null,null,null,null,null,"HASFS-011",null,null,null,"SDS4-0900KONF",null,"D425",null,null,null,null,null,"DN63",null,"8S",null,null,"8S","6000PSI_1\""]
["1SN",19,"1SNDN19",27.7,null,23.5,26.5,"HASFS-024026","HASFS-009","STOPFA 2830CONF","2426","M 6","SEILLAGER KLEIN","SLK",3,null,"DKO_CE.standard","10S","DKO_CE.standard10S","M 18","Lasche DIN 10S/12L","D185",null,"1.011-32-32",null,61,136,null,"41100","STAHLDRAHTSEIL 4MM + KUGEL 10MM","SDS4-1100KONF",null,null,null,null,null,null,null,null,null,"HASFS-012",null,null,null,"SDS4-1000KONF",null,"D455",null,null,null,null,null,"DN76",null,"10S",null,null,"10S","6000PSI_1_1/4\""]
["1SN",25,"1SNDN25",35.6,null,26.5,29.5,"HASFS-027029","HASFS-010","STOPFA 3133CONF","2729","M 6","SEILLAGER KLEIN","SLK",3,null,"DKO_CE.standard","12S","DKO_CE.standard12S","M 20","Lasche DIN 12S","D205",null,"1.011-32-36",null,76,156,null,"41200","STAHLDRAHTSEIL 4MM + KUGEL 10MM","SDS4-1200KONF",null,null,null,null,null,null,null,null,null,"HASFS-013",null,null,null,"SDS4-1100KONF",null,"D525",null,null,null,null,null,null,null,"12S",null,null,"12S","6000PSI_1_1/2\""]
["1SN",31,"1SNDN31",43.5,null,29.5,32.5,"HASFS-030032","HASFS-011","STOPFA 3436CONF","3032","M 6","SEILLAGER KLEIN","SLK",3,null,"DKO_CE.standard","14S","DKO_CE.standard14S","M 22","Lasche DIN 14S/15L","D225",null,"1.011-40-32",null,62,137,null,"41300","STAHLDRAHTSEIL 4MM + KUGEL 10MM","SDS4-1300KONF",null,null,null,null,null,null,null,null,null,"HASFS-014",null,null,null,"SDS4-1200KONF",null,"D600",null,null,null,null,null,null,null,"14S",null,null,"14S","6000PSI_2\""]
["1SN",38,"1SNDN38",50.6,null,32.5,35.5,"HASFS-033035","HASFS-012","STOPFA 3739CONF","3335","M 6","SEILLAGER KLEIN","SLK",3,null,"DKO_CE.standard","16S","DKO_CE.standard16S","M 24","Lasche DIN 16S","D245",null,"1.011-40-36",null,77,157,null,"41400","STAHLDRAHTSEIL 4MM + KUGEL 10MM","SDS4-1400KONF",null,null,null,null,null,null,null,null,null,"HASFS-015",null,null,null,"SDS4-1300KONF",null,"S085",null,null,null,null,null,null,null,"16S",null,null,"16S"]
["1SN",51,"1SNDN51",64,null,35.5,39.5,"HASFS-036039","HASFS-013","STOPFA 4043CONF","3639","M 6","SEILLAGER KLEIN","SLK",3,null,"DKO_CE.standard","20S","DKO_CE.standard20S","M 30","Lasche DIN 20S/22L","D305",null,"1.015-12-12",32,73,112,null,{"$f":"MID(AE17,4,1)&MID(AE17,6,4)","v":"41500"},"STAHLDRAHTSEIL 4MM + KUGEL 10MM","SDS4-1500KONF",null,null,null,null,null,null,null,null,null,"HASFS-016",null,null,null,"SDS4-1400KONF",null,"S105",null,null,null,null,null,null,null,"20S",null,null,"20S"]
["1SN-K",6,"1SN-KDN6",11.8,null,39.5,43.5,"HASFS-040043","HASFS-014","STOPFA 4447CONF","4043","M 6","SEILLAGER KLEIN","SLK",3,null,"DKO_CE.standard","25S","DKO_CE.standard25S","M 36","Lasche DIN 25S/28L","D365",null,"1.015-12-16",36,81,128,null,{"$f":"MID(AE18,4,1)&MID(AE18,6,4)","v":"41600"},"STAHLDRAHTSEIL 4MM + KUGEL 10MM","SDS4-1600KONF",null,null,null,null,null,null,null,null,null,"HASFS-017",null,null,null,"SDS4-1500KONF",null,"S125",null,null,null,null,null,null,null,"25S",null,null,"25S"]
["1SN-K",8,"1SN-KDN8",13.6,null,43.5,47.5,"HASFS-044047","HASFS-016","STOPFA 4851CONF/HD","4447","M 8","SEILLAGER GROß","SLG",4,null,"DKO_CE.standard","30S","DKO_CE.standard30S","M 42","Lasche DIN 30S","D425",null,"1.015-16-12",33,70,109,null,{"$f":"MID(AE19,4,1)&MID(AE19,6,4)","v":"41700"},"STAHLDRAHTSEIL 4MM + KUGEL 10MM","SDS4-1700KONF",null,null,null,null,null,null,null,null,null,"HASFS-018",null,null,null,null,null,"S145",null,null,null,null,null,null,null,"30S",null,null,"30S"]
["1SN-K",10,"1SN-KDN10",16.5,null,47.5,51.5,"HASFS-048051","HASFS-017","STOPFA 5255CONF","4851","M 8","SEILLAGER GROß","SLG",4,null,"DKO_CE.standard","38S","DKO_CE.standard38S","M 52","Lasche DIN 38S/42L","D525",null,"1.015-16-16",36,80,126,null,null,null,null,null,null,null,null,null,null,null,null,null,"HASFS-019",null,null,null,null,null,"S165",null,null,null,null,null,null,null,"38S",null,null,"38S"]
["1SN-K",12,"1SN-KDN12",19,null,51.5,56.5,"HASFS-052056","HASFS-018","STOPFA 5660CONF","5256","M 8","SEILLAGER GROß","SLG",4,null,"DKM_AGM.standard","M 30","DKM_AGM.standardM 30","M 30","Lasche DIN 20S/22L","D305",null,"1.015-16-20",40,115,169,null,null,null,null,null,null,null,null,null,null,null,null,null,"HASFS-020",null,null,null,null,null,"S205"]
["1SN-K",16,"1SN-KDN16",22.3,null,56.5,61.5,"HASFS-057061","HASFS-019","STOPFA 6165CONF","5761","M 8","SEILLAGER GROß","SLG",4,null,"DKM_AGM.standard","M 45","DKM_AGM.standardM 45","M 45","Lasche DIN 35L","D455",null,"1.015-20-16",35,79,125,null,null,null,null,null,null,null,null,null,null,null,null,null,"HASFS-021",null,null,null,null,null,"D125G",null,"angepaßt"]
["1SN-K",19,"1SN-KDN19",26.2,null,61.5,66.5,"HASFS-062066","HASFS-020","STOPFA 6670CONF","6266","M 8","SEILLAGER GROß","SLG",4,null,"DKM_AGM.standard","M 52","DKM_AGM.standardM 52","M 52","Lasche DIN 38S/42L","D525",null,"1.015-20-20",39,114,168,null,null,null,null,null,null,null,null,null,null,null,null,null,"HASFS-022",null,null,null,null,null,"D145G",null,"angepaßt"]
["1SN-K",25,"1SN-KDN25",34,null,66.5,72.5,"HASFS-067073","HASFS-021","STOPFA 7177CONF","6773","M 8","SEILLAGER GROß","SLG",4,null,"DKM_AGM.standard","M 65",{"$f":"Q24&R24","v":"DKM_AGM.standardM 65"},"M 65","Lasche DKM/DKOM 65,5mm","D655",null,"1.015-20-24",47,109,166,null,null,null,null,null,null,null,null,null,null,null,null,null,null,null,null,null,null,null,"D165G",null,"angepaßt"]
["1SN-K",31,"1SN-KDN31",44,null,72.5,78,"HASFS-072078","HASFS-022","STOPFA 7682CONF","7278","M8","SEILLAGER GROß","SLG",4,null,"DKM_AGM.standard","M 78","DKM_AGM.standardM 78","M 78","Lasche DKM/DKOM 78,5mm","D785",null,"1.015-24-20",40,115,169,null,null,null,null,null,null,null,null,null,null,null,null,null,null,null,null,null,null,null,"D185G",null,"angepaßt"]
["2SC",6,"2SCDN6",13.6,null,78.5,85.5,"HASFS-079085","HASFS-024"," -","7985","M8","SEILLAGER GROß","SLG",4,null,"DKM_AGM.standard","M 90","DKM_AGM.standardM 90","M 90","Lasche DKM/DKOM 90,5mm","D905",null,"1.015-24-24",49,111,168,null,null,null,null,null,null,null,null,null,null,null,null,null,null,null,null,null,null,null,"D205G",null,"angepaßt"]
["2SC",8,"2SCDN8",15.2,null,85.5,91.5,"HASFS-086091","HASFS-025"," -","8691","M8","SEILLAGER GROß","SLG",4,null,"DKM_AGM.standard","M 100","DKM_AGM.standardM 100","M 100","Lasche DKM/DKOM 100,5mm","D1005",null,"1.015-24-32",54,111,186,null,null,null,null,null,null,null,null,null,null,null,null,null,null,null,null,null,null,null,"D225G",null,"angepaßt"]
["2SC",10,"2SCDN10",17.600000000000001,null,91.5,96.5,"HASFS-092096","HASFS-026"," -","9296","M8","SEILLAGER GROß","SLG",4,null,"DKR_AGR.standard","2\"","DKR_AGR.standard2\"","G 2\" (59,6)","Lasche DIN  2\"","D600",null,"1.015-32-24",49,111,168,null,null,null,null,null,null,null,null,null,null,null,null,null,null,null,null,null,null,null,"D245G",null,"angepaßt"]
["2SC",12,"2SCDN12",20.7,null,96.5,"-"," -","-"," -","-","-","-","-"," -",null,"DKR_AGR.standard","3\"","DKR_AGR.standard3\"","G 3\" (87,9)","Lasche DKM/DKOM 90,5mm","D905",null,"1.015-32-32",55,112,187,null,null,null,null,null,null,null,null,null,null,null,null,null,null,null,null,null,null,null,"D265G",null,"angepaßt"]
["2SC",16,"2SCDN16",23.7,null,null,null,null,null,null,null,null,null,null,null,null,"SAE","3000PSI_1/2\"",{"$f":"Q30&R30","v":"SAE3000PSI_1/2\""},"M 8","Lasche SAE D08.5","S085",null,"1.015-32-36",56,150,230,null,null,null,null,null,null,null,null,null,null,null,null,null,null,null,null,null,null,null,"D305G",null,"angepaßt"]
["2SC",19,"2SCDN19",27.7,null,null,null,null,null,null,null,null,null,null,null,null,"SAE","3000PSI_3/4\"","SAE3000PSI_3/4\"","M 10","Lasche SAE D10.5","S105",null,"1.015-40-32",50,116,191,null,null,null,null,null,null,null,null,null,null,null,null,null,null,null,null,null,null,null,"D365G",null,"angepaßt"]
["2SC",25,"2SCDN25",35.700000000000003,null,null,null,null,null,null,null,null,null,null,null,null,"SAE","3000PSI_1\"","SAE3000PSI_1\"","M 10","Lasche SAE D10.5","S105",null,"1.015-40-36",53,148,228,null,null,null,null,null,null,null,null,null,null,null,null,null,null,null,null,null,null,null,"D425G",null,"angepaßt"]
["2SN",6,{"$f":"A33&\"DN\"&B33","v":"2SNDN6"},15,null,null,null,null,null,null,null,null,null,null,null,null,"SAE","3000PSI_1_1/4\"","SAE3000PSI_1_1/4\"","M 10","Lasche SAE D10.5","S105",null,"1.019-12-12",61,60,99,null,null,null,null,null,null,null,null,null,null,null,null,null,null,null,null,null,null,null,"D455G",null,"angepaßt"]
["2SN",8,"2SNDN8",16.600000000000001,null,null,null,null,null,null,null,null,null,null,null,null,"SAE","3000PSI_1_1/2\"","SAE3000PSI_1_1/2\"","M 12","Lasche SAE D12.5","S125",null,"1.019-12-16",71,68,114,null,null,null,null,null,null,null,null,null,null,null,null,null,null,null,null,null,null,null,"D525G",null,"angepaßt"]
["2SN",10,"2SNDN10",19,null,null,null,null,null,null,null,null,null,null,null,null,"SAE","3000PSI_2\"","SAE3000PSI_2\"","M 12","Lasche SAE D12.5","S125",null,"1.019-16-12",62,60,99]
["2SN",12,"2SNDN12",22.2,null,null,null,null,null,null,null,null,null,null,null,null,"SAE","3000PSI_2_1/2\"","SAE3000PSI_2_1/2\"","M 12","Lasche SAE D12.5","S125",null,"1.019-16-16",69,68,114]
["2SN",16,"2SNDN16",25.4,null,null,null,null,null,null,null,null,null,null,null,null,"SAE","3000PSI_3\"","SAE3000PSI_3\"","M 16","Lasche SAE D16.5","S165",null,"1.019-16-20",84,94,148]
["2SN",19,"2SNDN19",29.3,null,null,null,null,null,null,null,null,null,null,null,null,"SAE","3000PSI_3_1/2\"","SAE3000PSI_3_1/2\"","M 16","Lasche SAE D16.5","S165",null,"1.019-20-16",70,68,114]
["2SN",25,"2SNDN25",38.1,null,null,null,null,null,null,null,null,null,null,null,null,"SAE","6000PSI_1/2\"",{"$f":"Q39&R39","v":"SAE6000PSI_1/2\""},"M 8","Lasche SAE D08.5","S085",null,"1.019-20-20",82,94,148]
["2SN",31,"2SNDN31",48.3,null,null,null,null,null,null,null,null,null,null,null,null,"SAE","6000PSI_3/4\"","SAE6000PSI_3/4\"","M 10","Lasche SAE D10.5","S105",null,"1.019-20-24",104,105,162]
["2SN",38,"2SNDN38",54.6,null,null,null,null,null,null,null,null,null,null,null,null,"SAE","6000PSI_1\"","SAE6000PSI_1\"","M 12","Lasche SAE D12.5","S125",null,"1.019-24-20",83,94,148]
["2SN",51,"2SNDN51",67.3,null,null,null,null,null,null,null,null,null,null,null,null,"SAE","6000PSI_1_1/4\"","SAE6000PSI_1_1/4\"","M 14","Lasche SAE D14.5","S145",null,"1.019-24-24",101,105,162]
["2SN",60,"2SNDN60",71.5,null,null,null,null,null,null,null,null,null,null,null,null,"SAE","6000PSI_1_1/2\"","SAE6000PSI_1_1/2\"","M 16","Lasche SAE D16.5","S165",null,"1.019-24-32",114,130,205]
["2SN",63,"2SNDN63",83,null,null,null,null,null,null,null,null,null,null,null,null,"SAE","6000PSI_2\"","SAE6000PSI_2\"","M 20","Lasche SAE D20.5","S205",null,"1.019-32-24",103,105,162]
["2SN",76,"2SNDN76",90.5,null,null,null,null,null,null,null,null,null,null,null,null,"DKO_CE.geteilt","6L","DKO_CE.geteilt6L","M 12","Lasche DIN 6L","D125G",null,"1.019-32-32",112,130,205]
["2SN-K",6,"2SN-KDN6",13.4,null,null,null,null,null,null,null,null,null,null,null,null,"DKO_CE.geteilt","8L","DKO_CE.geteilt8L","M 14","Lasche DIN 6S/8L","D145G",null,"1.019-32-36",129,155,253]
["2SN-K",8,"2SN-KDN8",15,null,null,null,null,null,null,null,null,null,null,null,null,"DKO_CE.geteilt","10L","DKO_CE.geteilt10L","M 16","Lasche DIN 8S/10L","D165G",null,"1.019-40-32",117,130,205]
["2SN-K",10,"2SN-KDN10",17.399999999999999,null,null,null,null,null,null,null,null,null,null,null,null,"DKO_CE.geteilt","12L","DKO_CE.geteilt12L","M 18","Lasche DIN 10S/12L","D185G",null,"1.019-40-36",129,155,253]
["2SN-K",12,"2SN-KDN12",20.6,null,null,null,null,null,null,null,null,null,null,null,null,"DKO_CE.geteilt","15L","DKO_CE.geteilt15L","M 22","Lasche DIN 14S/15L","D225G",null,"1.051-03-04",null,27,53]
["2SN-K",16,"2SN-KDN16",23.7,null,null,null,null,null,null,null,null,null,null,null,null,"DKO_CE.geteilt","18L","DKO_CE.geteilt18L","M 26","Lasche DIN 18L","D265G",null,"1.051-03-05",null,27,53]
["2SN-K",19,"2SN-KDN19",27.7,null,null,null,null,null,null,null,null,null,null,null,null,"DKO_CE.geteilt","22L","DKO_CE.geteilt22L","M 30","Lasche DIN 20S/22L","D305G",null,"1.051-04-04",null,22,49]
["2SN-K",25,"2SN-KDN25",35.6,null,null,null,null,null,null,null,null,null,null,null,null,"DKO_CE.geteilt","28L","DKO_CE.geteilt28L","M 36","Lasche DIN 25S/28L","D365G",null,"1.051-04-05",null,26,54]
["2SN-K",31,"2SN-KDN31",43.5,null,null,null,null,null,null,null,null,null,null,null,null,"DKO_CE.geteilt","35L","DKO_CE.geteilt35L","M 45","Lasche DIN 35L","D455G",null,"1.051-04-06",null,26,56]
["3SPC",10,"3SPCDN10",21.4,null,null,null,null,null,null,null,null,null,null,null,null,"DKO_CE.geteilt","42L","DKO_CE.geteilt42L","M 52","Lasche DIN 38S/42L","D525G",null,"1.051-05-04",null,23,50]
["3SPC",12,"3SPCDN12",24.2,null,null,null,null,null,null,null,null,null,null,null,null,"DKO_CE.geteilt","6S","DKO_CE.geteilt6S","M 14","Lasche DIN 6S/8L","D145G",null,"1.051-05-05",null,23,50]
["3SPC",16,"3SPCDN16",28.1,null,null,null,null,null,null,null,null,null,null,null,null,"DKO_CE.geteilt","8S","DKO_CE.geteilt8S","M 16","Lasche DIN 8S/10L","D165G",null,"1.051-05-06",null,28,58]
["3SPC",19,"3SPCDN19",31.8,null,null,null,null,null,null,null,null,null,null,null,null,"DKO_CE.geteilt","10S","DKO_CE.geteilt10S","M 18","Lasche DIN 10S/12L","D185G",null,"1.051-06-04",null,23,50]
["3SPC",25,"3SPCDN25",39,null,null,null,null,null,null,null,null,null,null,null,null,"DKO_CE.geteilt","12S","DKO_CE.geteilt12S","M 20","Lasche DIN 12S","D205G",null,"1.051-06-05",null,23,50]
["4SH",16,"4SHDN16",28.5,null,null,null,null,null,null,null,null,null,null,null,null,"DKO_CE.geteilt","14S","DKO_CE.geteilt14S","M 22","Lasche DIN 14S/15L","D225G",null,"1.051-06-06",null,24,54]
["4SH",19,"4SHDN19",32,null,null,null,null,null,null,null,null,null,null,null,null,"DKO_CE.geteilt","16S","DKO_CE.geteilt16S","M 24","Lasche DIN 16S","D245G",null,"1.051-06-08",null,31,62]
["4SH",25,"4SHDN25",38,null,null,null,null,null,null,null,null,null,null,null,null,"DKO_CE.geteilt","20S","DKO_CE.geteilt20S","M 30","Lasche DIN 20S/22L","D305G",null,"1.051-08-06",null,26,56]
["4SH",31,"4SHDN31",45,null,null,null,null,null,null,null,null,null,null,null,null,"DKO_CE.geteilt","25S","DKO_CE.geteilt25S","M 36","Lasche DIN 25S/28L","D365G",null,"1.051-08-08",null,25,56]
["4SH",38,"4SHDN38",53,null,null,null,null,null,null,null,null,null,null,null,null,"DKO_CE.geteilt","30S","DKO_CE.geteilt30S","M 42","Lasche DIN 30S","D425G",null,"1.051-08-10",null,30,64]
["4SH",51,"4SHDN51",68,null,null,null,null,null,null,null,null,null,null,null,null,"DKO_CE.geteilt","38S","DKO_CE.geteilt38S","M 52","Lasche DIN 38S/42L","D525G",null,"1.051-10-08",null,28,59]
["4SP",6,{"$f":"A65&\"DN\"&B65","v":"4SPDN6"},17.899999999999999,null,null,null,null,null,null,null,null,null,null,null,null,null,null,null,null,null,null,null,"1.051-10-10",null,26,62]
["4SP",10,"4SPDN10",21.4,null,null,null,null,null,null,null,null,null,null,null,null,null,null,null,null,null,null,null,"1.051-10-12",null,32,71]
["4SP",12,"4SPDN12",24.6,null,null,null,null,null,null,null,null,null,null,null,null,null,null,null,null,null,null,null,"1.051-12-10",null,29,63]
["4SP",16,"4SPDN16",28.2,null,null,null,null,null,null,null,null,null,null,null,null,null,null,null,null,null,null,null,"1.051-12-12",null,30,69]
["4SP",19,"4SPDN19",32.200000000000003,null,null,null,null,null,null,null,null,null,null,null,null,null,null,null,null,null,null,null,"1.051-12-16",null,37,84]
["4SP",25,"4SPDN25",39.700000000000003,null,null,null,null,null,null,null,null,null,null,null,null,null,null,null,null,null,null,null,"1.051-16-12",null,33,71]
["4SP",31,"4SPDN31",50.8,null,null,null,null,null,null,null,null,null,null,null,null,null,null,null,null,null,null,null,"1.051-16-16",null,32,79]
["6SP_560bar",19,"6SP_560barDN19",35.200000000000003,null,null,null,null,null,null,null,null,null,null,null,null,null,null,null,null,null,null,null,"1.051-16-20",null,39,94]
["6SP_560bar",25,"6SP_560barDN25",42.1,null,null,null,null,null,null,null,null,null,null,null,null,null,null,null,null,null,null,null,"1.051-20-16",null,37,84]
["R13",51,"R13DN51",71.8,null,null,null,null,null,null,null,null,null,null,null,null,null,null,null,null,null,null,null,"1.051-20-20",null,36,90]
["R15",19,"R15DN19",32,null,null,null,null,null,null,null,null,null,null,null,null,null,null,null,null,null,null,null,"1.051-20-24",null,41,98]
["R15",25,"R15DN25",38,null,null,null,null,null,null,null,null,null,null,null,null,null,null,null,null,null,null,null,"1.051-24-20",null,40,95]
["R15",31,"R15DN31",50,null,null,null,null,null,null,null,null,null,null,null,null,null,null,null,null,null,null,null,"1.051-24-24",null,38,95]
["R15",38,"R15DN38",57.3,null,null,null,null,null,null,null,null,null,null,null,null,null,null,null,null,null,null,null,"1.055-03-04",15,40,63]
[null,null,null,null,null,null,null,null,null,null,null,null,null,null,null,null,null,null,null,null,null,null,null,"1.055-04-04M",16,41,68]
[null,null,null,null,null,null,null,null,null,null,null,null,null,null,null,null,null,null,null,null,null,null,null,"1.055-04-05",18,44,68]
[null,null,null,null,null,null,null,null,null,null,null,null,null,null,null,null,null,null,null,null,null,null,null,"1.055-05-04",19,38,65]
[null,null,null,null,null,null,null,null,null,null,null,null,null,null,null,null,null,null,null,null,null,null,null,"1.055-05-05M",18,45,72]
[null,null,null,null,null,null,null,null,null,null,null,null,null,null,null,null,null,null,null,null,null,null,null,"1.055-05-06",18,44,74]
[null,null,null,null,null,null,null,null,null,null,null,null,null,null,null,null,null,null,null,null,null,null,null,"1.055-06-05",20,45,69]
[null,null,null,null,null,null,null,null,null,null,null,null,null,null,null,null,null,null,null,null,null,null,null,"1.055-06-06M",18,40,70]
[null,null,null,null,null,null,null,null,null,null,null,null,null,null,null,null,null,null,null,null,null,null,null,"1.055-06-08",23,52,83]
[null,null,null,null,null,null,null,null,null,null,null,null,null,null,null,null,null,null,null,null,null,null,null,"1.055-08-06",19,36,66]
[null,null,null,null,null,null,null,null,null,null,null,null,null,null,null,null,null,null,null,null,null,null,null,"1.055-08-08M",23,52,83]
[null,null,null,null,null,null,null,null,null,null,null,null,null,null,null,null,null,null,null,null,null,null,null,"1.055-08-10",28,65,99]
[null,null,null,null,null,null,null,null,null,null,null,null,null,null,null,null,null,null,null,null,null,null,null,"1.055-10-08",23,50,81]
[null,null,null,null,null,null,null,null,null,null,null,null,null,null,null,null,null,null,null,null,null,null,null,"1.055-10-10M",25,64,98]
[null,null,null,null,null,null,null,null,null,null,null,null,null,null,null,null,null,null,null,null,null,null,null,"1.055-10-12",34,77,116]
[null,null,null,null,null,null,null,null,null,null,null,null,null,null,null,null,null,null,null,null,null,null,null,"1.055-12-10",28,64,98]
[null,null,null,null,null,null,null,null,null,null,null,null,null,null,null,null,null,null,null,null,null,null,null,"1.055-12-12",34,77,116]
[null,null,null,null,null,null,null,null,null,null,null,null,null,null,null,null,null,null,null,null,null,null,null,"1.055-12-16",38,83,129]
[null,null,null,null,null,null,null,null,null,null,null,null,null,null,null,null,null,null,null,null,null,null,null,"1.055-16-12",32,75,114]
[null,null,null,null,null,null,null,null,null,null,null,null,null,null,null,null,null,null,null,null,null,null,null,"1.055-16-16",37,82,128]
[null,null,null,null,null,null,null,null,null,null,null,null,null,null,null,null,null,null,null,null,null,null,null,"1.055-16-20",40,115,169]
[null,null,null,null,null,null,null,null,null,null,null,null,null,null,null,null,null,null,null,null,null,null,null,"1.055-20-16",39,83,129]
[null,null,null,null,null,null,null,null,null,null,null,null,null,null,null,null,null,null,null,null,null,null,null,"1.055-20-20",39,115,163]
[null,null,null,null,null,null,null,null,null,null,null,null,null,null,null,null,null,null,null,null,null,null,null,"1.055-20-24",51,112,170]
[null,null,null,null,null,null,null,null,null,null,null,null,null,null,null,null,null,null,null,null,null,null,null,"1.055-24-20",39,115,163]
[null,null,null,null,null,null,null,null,null,null,null,null,null,null,null,null,null,null,null,null,null,null,null,"1.055-24-24",53,113,171]
[null,null,null,null,null,null,null,null,null,null,null,null,null,null,null,null,null,null,null,null,null,null,null,"1.059-03-04",29,26,53]
[null,null,null,null,null,null,null,null,null,null,null,null,null,null,null,null,null,null,null,null,null,null,null,"1.059-04-04M",30,26,53]
[null,null,null,null,null,null,null,null,null,null,null,null,null,null,null,null,null,null,null,null,null,null,null,"1.059-04-05",33,30,57]
[null,null,null,null,null,null,null,null,null,null,null,null,null,null,null,null,null,null,null,null,null,null,null,"1.059-05-04",32,26,53]
[null,null,null,null,null,null,null,null,null,null,null,null,null,null,null,null,null,null,null,null,null,null,null,"1.059-05-05M",34,30,57]
[null,null,null,null,null,null,null,null,null,null,null,null,null,null,null,null,null,null,null,null,null,null,null,"1.059-05-06",36,30,60]
[null,null,null,null,null,null,null,null,null,null,null,null,null,null,null,null,null,null,null,null,null,null,null,"1.059-06-05",34,30,57]
[null,null,null,null,null,null,null,null,null,null,null,null,null,null,null,null,null,null,null,null,null,null,null,"1.059-06-06M",34,30,60]
[null,null,null,null,null,null,null,null,null,null,null,null,null,null,null,null,null,null,null,null,null,null,null,"1.059-06-08",44,42,73]
[null,null,null,null,null,null,null,null,null,null,null,null,null,null,null,null,null,null,null,null,null,null,null,"1.059-08-06",33,30,60]
[null,null,null,null,null,null,null,null,null,null,null,null,null,null,null,null,null,null,null,null,null,null,null,"1.059-08-08M",43,42,73]
[null,null,null,null,null,null,null,null,null,null,null,null,null,null,null,null,null,null,null,null,null,null,null,"1.059-08-10",52,52,86]
[null,null,null,null,null,null,null,null,null,null,null,null,null,null,null,null,null,null,null,null,null,null,null,"1.059-10-08",41,42,73]
[null,null,null,null,null,null,null,null,null,null,null,null,null,null,null,null,null,null,null,null,null,null,null,"1.059-10-10M",48,47,81]
[null,null,null,null,null,null,null,null,null,null,null,null,null,null,null,null,null,null,null,null,null,null,null,"1.059-10-12",64,60,99]
[null,null,null,null,null,null,null,null,null,null,null,null,null,null,null,null,null,null,null,null,null,null,null,"1.059-12-10",54,52,86]
[null,null,null,null,null,null,null,null,null,null,null,null,null,null,null,null,null,null,null,null,null,null,null,"1.059-12-12",62,60,99]
[null,null,null,null,null,null,null,null,null,null,null,null,null,null,null,null,null,null,null,null,null,null,null,"1.059-12-16",72,65,111]
[null,null,null,null,null,null,null,null,null,null,null,null,null,null,null,null,null,null,null,null,null,null,null,"1.059-16-12",63,60,99]
[null,null,null,null,null,null,null,null,null,null,null,null,null,null,null,null,null,null,null,null,null,null,null,"1.059-16-16",71,65,111]
[null,null,null,null,null,null,null,null,null,null,null,null,null,null,null,null,null,null,null,null,null,null,null,"1.059-16-20",87,94,148]
[null,null,null,null,null,null,null,null,null,null,null,null,null,null,null,null,null,null,null,null,null,null,null,"1.059-20-16",77,60,106]
[null,null,null,null,null,null,null,null,null,null,null,null,null,null,null,null,null,null,null,null,null,null,null,"1.059-20-20",84,94,148]
[null,null,null,null,null,null,null,null,null,null,null,null,null,null,null,null,null,null,null,null,null,null,null,"1.059-20-24",106,105,162]
[null,null,null,null,null,null,null,null,null,null,null,null,null,null,null,null,null,null,null,null,null,null,null,"1.059-24-20",84,94,148]
[null,null,null,null,null,null,null,null,null,null,null,null,null,null,null,null,null,null,null,null,null,null,null,"1.059-24-24",103,105,162]
[null,null,null,null,null,null,null,null,null,null,null,null,null,null,null,null,null,null,null,null,null,null,null,"1.081-02-04",null,25,52]
[null,null,null,null,null,null,null,null,null,null,null,null,null,null,null,null,null,null,null,null,null,null,null,"1.081-03-04",null,25,52]
[null,null,null,null,null,null,null,null,null,null,null,null,null,null,null,null,null,null,null,null,null,null,null,"1.081-04-04",null,25,52]
[null,null,null,null,null,null,null,null,null,null,null,null,null,null,null,null,null,null,null,null,null,null,null,"1.081-04-05",null,25,52]
[null,null,null,null,null,null,null,null,null,null,null,null,null,null,null,null,null,null,null,null,null,null,null,"1.081-05-04",null,28,55]
[null,null,null,null,null,null,null,null,null,null,null,null,null,null,null,null,null,null,null,null,null,null,null,"1.081-05-05",null,25,52]
[null,null,null,null,null,null,null,null,null,null,null,null,null,null,null,null,null,null,null,null,null,null,null,"1.081-05-06",null,26,56]
[null,null,null,null,null,null,null,null,null,null,null,null,null,null,null,null,null,null,null,null,null,null,null,"1.081-06-05",null,29,56]
[null,null,null,null,null,null,null,null,null,null,null,null,null,null,null,null,null,null,null,null,null,null,null,"1.081-06-06",null,26,56]
[null,null,null,null,null,null,null,null,null,null,null,null,null,null,null,null,null,null,null,null,null,null,null,"1.081-06-08",null,32,63]
[null,null,null,null,null,null,null,null,null,null,null,null,null,null,null,null,null,null,null,null,null,null,null,"1.081-08-06",null,28,58]
[null,null,null,null,null,null,null,null,null,null,null,null,null,null,null,null,null,null,null,null,null,null,null,"1.081-08-08",null,30,61]
[null,null,null,null,null,null,null,null,null,null,null,null,null,null,null,null,null,null,null,null,null,null,null,"1.081-08-10",null,32,66]
[null,null,null,null,null,null,null,null,null,null,null,null,null,null,null,null,null,null,null,null,null,null,null,"1.081-10-08",null,33,64]
[null,null,null,null,null,null,null,null,null,null,null,null,null,null,null,null,null,null,null,null,null,null,null,"1.081-10-10",null,35,69]
[null,null,null,null,null,null,null,null,null,null,null,null,null,null,null,null,null,null,null,null,null,null,null,"1.081-10-12",null,35,74]
[null,null,null,null,null,null,null,null,null,null,null,null,null,null,null,null,null,null,null,null,null,null,null,"1.081-12-10/SW41",null,34,68]
[null,null,null,null,null,null,null,null,null,null,null,null,null,null,null,null,null,null,null,null,null,null,null,"1.081-12-10/SW46",null,34,68]
[null,null,null,null,null,null,null,null,null,null,null,null,null,null,null,null,null,null,null,null,null,null,null,"1.081-12-12/SW41",null,39,78]
[null,null,null,null,null,null,null,null,null,null,null,null,null,null,null,null,null,null,null,null,null,null,null,"1.081-12-12/SW46",null,39,78]
[null,null,null,null,null,null,null,null,null,null,null,null,null,null,null,null,null,null,null,null,null,null,null,"1.081-12-16/SW46",null,41,87]
[null,null,null,null,null,null,null,null,null,null,null,null,null,null,null,null,null,null,null,null,null,null,null,"1.081-16-12",null,34,73]
[null,null,null,null,null,null,null,null,null,null,null,null,null,null,null,null,null,null,null,null,null,null,null,"1.081-16-16",null,44,90]
[null,null,null,null,null,null,null,null,null,null,null,null,null,null,null,null,null,null,null,null,null,null,null,"1.081-16-20",null,41,95]
[null,null,null,null,null,null,null,null,null,null,null,null,null,null,null,null,null,null,null,null,null,null,null,"1.081-20-16",null,38,84]
[null,null,null,null,null,null,null,null,null,null,null,null,null,null,null,null,null,null,null,null,null,null,null,"1.081-20-20",null,49,103]
[null,null,null,null,null,null,null,null,null,null,null,null,null,null,null,null,null,null,null,null,null,null,null,"1.081-20-24",null,42,99]
[null,null,null,null,null,null,null,null,null,null,null,null,null,null,null,null,null,null,null,null,null,null,null,"1.081-24-24",null,54,111]
[null,null,null,null,null,null,null,null,null,null,null,null,null,null,null,null,null,null,null,null,null,null,null,"1.085-03-04",18,41,65]
[null,null,null,null,null,null,null,null,null,null,null,null,null,null,null,null,null,null,null,null,null,null,null,"1.085-04-04",17,41,68]
[null,null,null,null,null,null,null,null,null,null,null,null,null,null,null,null,null,null,null,null,null,null,null,"1.085-04-05",18,46,73]
[null,null,null,null,null,null,null,null,null,null,null,null,null,null,null,null,null,null,null,null,null,null,null,"1.085-05-04",17,41,68]
[null,null,null,null,null,null,null,null,null,null,null,null,null,null,null,null,null,null,null,null,null,null,null,"1.085-05-05",17,45,72]
[null,null,null,null,null,null,null,null,null,null,null,null,null,null,null,null,null,null,null,null,null,null,null,"1.085-05-06",18,41,71]
[null,null,null,null,null,null,null,null,null,null,null,null,null,null,null,null,null,null,null,null,null,null,null,"1.085-06-05",21,46,69]
[null,null,null,null,null,null,null,null,null,null,null,null,null,null,null,null,null,null,null,null,null,null,null,"1.085-06-06",18,42,72]
[null,null,null,null,null,null,null,null,null,null,null,null,null,null,null,null,null,null,null,null,null,null,null,"1.085-06-08",24,54,85]
[null,null,null,null,null,null,null,null,null,null,null,null,null,null,null,null,null,null,null,null,null,null,null,"1.085-08-06",19,42,72]
[null,null,null,null,null,null,null,null,null,null,null,null,null,null,null,null,null,null,null,null,null,null,null,"1.085-08-08",23,53,84]
[null,null,null,null,null,null,null,null,null,null,null,null,null,null,null,null,null,null,null,null,null,null,null,"1.085-08-10",28,67,101]
[null,null,null,null,null,null,null,null,null,null,null,null,null,null,null,null,null,null,null,null,null,null,null,"1.085-10-08",27,70,101]
[null,null,null,null,null,null,null,null,null,null,null,null,null,null,null,null,null,null,null,null,null,null,null,"1.085-10-10",32,68,102]
[null,null,null,null,null,null,null,null,null,null,null,null,null,null,null,null,null,null,null,null,null,null,null,"1.085-10-12",34,78,117]
[null,null,null,null,null,null,null,null,null,null,null,null,null,null,null,null,null,null,null,null,null,null,null,"1.085-12-10/SW41",28,71,105]
[null,null,null,null,null,null,null,null,null,null,null,null,null,null,null,null,null,null,null,null,null,null,null,"1.085-12-10/SW46",32,69,103]
[null,null,null,null,null,null,null,null,null,null,null,null,null,null,null,null,null,null,null,null,null,null,null,"1.085-12-12/SW41",36,79,118]
[null,null,null,null,null,null,null,null,null,null,null,null,null,null,null,null,null,null,null,null,null,null,null,"1.085-12-12/SW46",36,79,118]
[null,null,null,null,null,null,null,null,null,null,null,null,null,null,null,null,null,null,null,null,null,null,null,"1.085-12-16/SW46",41,87,133]
[null,null,null,null,null,null,null,null,null,null,null,null,null,null,null,null,null,null,null,null,null,null,null,"1.085-16-12",34,74,113]
[null,null,null,null,null,null,null,null,null,null,null,null,null,null,null,null,null,null,null,null,null,null,null,"1.085-16-16",39,84,130]
[null,null,null,null,null,null,null,null,null,null,null,null,null,null,null,null,null,null,null,null,null,null,null,"1.085-16-20",40,115,169]
[null,null,null,null,null,null,null,null,null,null,null,null,null,null,null,null,null,null,null,null,null,null,null,"1.085-20-16",39,83,129]
[null,null,null,null,null,null,null,null,null,null,null,null,null,null,null,null,null,null,null,null,null,null,null,"1.085-20-20",39,114,168]
[null,null,null,null,null,null,null,null,null,null,null,null,null,null,null,null,null,null,null,null,null,null,null,"1.085-20-24",53,115,172]
[null,null,null,null,null,null,null,null,null,null,null,null,null,null,null,null,null,null,null,null,null,null,null,"1.085-24-24",49,117,174]
[null,null,null,null,null,null,null,null,null,null,null,null,null,null,null,null,null,null,null,null,null,null,null,"1.089-03-04",32,26,53]
[null,null,null,null,null,null,null,null,null,null,null,null,null,null,null,null,null,null,null,null,null,null,null,"1.089-04-04",33,25,52]
[null,null,null,null,null,null,null,null,null,null,null,null,null,null,null,null,null,null,null,null,null,null,null,"1.089-04-05",35,30,57]
[null,null,null,null,null,null,null,null,null,null,null,null,null,null,null,null,null,null,null,null,null,null,null,"1.089-05-04",31,26,53]
[null,null,null,null,null,null,null,null,null,null,null,null,null,null,null,null,null,null,null,null,null,null,null,"1.089-05-05",33,30,57]
[null,null,null,null,null,null,null,null,null,null,null,null,null,null,null,null,null,null,null,null,null,null,null,"1.089-05-06",33,30,60]
[null,null,null,null,null,null,null,null,null,null,null,null,null,null,null,null,null,null,null,null,null,null,null,"1.089-06-05",35,30,57]
[null,null,null,null,null,null,null,null,null,null,null,null,null,null,null,null,null,null,null,null,null,null,null,"1.089-06-06",35,30,60]
[null,null,null,null,null,null,null,null,null,null,null,null,null,null,null,null,null,null,null,null,null,null,null,"1.089-06-08",45,45,76]
[null,null,null,null,null,null,null,null,null,null,null,null,null,null,null,null,null,null,null,null,null,null,null,"1.089-08-06",34,30,60]
[null,null,null,null,null,null,null,null,null,null,null,null,null,null,null,null,null,null,null,null,null,null,null,"1.089-08-08",44,42,73]
[null,null,null,null,null,null,null,null,null,null,null,null,null,null,null,null,null,null,null,null,null,null,null,"1.089-08-10",56,52,86]
[null,null,null,null,null,null,null,null,null,null,null,null,null,null,null,null,null,null,null,null,null,null,null,"1.089-10-08",48,42,73]
[null,null,null,null,null,null,null,null,null,null,null,null,null,null,null,null,null,null,null,null,null,null,null,"1.089-10-10",57,51,85]
[null,null,null,null,null,null,null,null,null,null,null,null,null,null,null,null,null,null,null,null,null,null,null,"1.089-10-12",68,60,99]
[null,null,null,null,null,null,null,null,null,null,null,null,null,null,null,null,null,null,null,null,null,null,null,"1.089-12-10/SW41",54,52,86]
[null,null,null,null,null,null,null,null,null,null,null,null,null,null,null,null,null,null,null,null,null,null,null,"1.089-12-10/SW46",54,52,86]
[null,null,null,null,null,null,null,null,null,null,null,null,null,null,null,null,null,null,null,null,null,null,null,"1.089-12-12/SW41",67,60,99]
[null,null,null,null,null,null,null,null,null,null,null,null,null,null,null,null,null,null,null,null,null,null,null,"1.089-12-12/SW46",67,60,99]
[null,null,null,null,null,null,null,null,null,null,null,null,null,null,null,null,null,null,null,null,null,null,null,"1.089-12-16/SW46",64,65,111]
[null,null,null,null,null,null,null,null,null,null,null,null,null,null,null,null,null,null,null,null,null,null,null,"1.089-16-12",64,60,99]
[null,null,null,null,null,null,null,null,null,null,null,null,null,null,null,null,null,null,null,null,null,null,null,"1.089-16-16",76,65,111]
[null,null,null,null,null,null,null,null,null,null,null,null,null,null,null,null,null,null,null,null,null,null,null,"1.089-16-20",87,94,148]
[null,null,null,null,null,null,null,null,null,null,null,null,null,null,null,null,null,null,null,null,null,null,null,"1.089-20-16",72,65,111]
[null,null,null,null,null,null,null,null,null,null,null,null,null,null,null,null,null,null,null,null,null,null,null,"1.089-20-20",84,94,148]
[null,null,null,null,null,null,null,null,null,null,null,null,null,null,null,null,null,null,null,null,null,null,null,"1.089-20-24",106,105,162]
[null,null,null,null,null,null,null,null,null,null,null,null,null,null,null,null,null,null,null,null,null,null,null,"1.089-24-24",115,105,162]
[null,null,null,null,null,null,null,null,null,null,null,null,null,null,null,null,null,null,null,null,null,null,null,"1.111-12-12",null,42,81]
[null,null,null,null,null,null,null,null,null,null,null,null,null,null,null,null,null,null,null,null,null,null,null,"1.111-12-16",null,46,92]
[null,null,null,null,null,null,null,null,null,null,null,null,null,null,null,null,null,null,null,null,null,null,null,"1.111-16-12",null,42,81]
[null,null,null,null,null,null,null,null,null,null,null,null,null,null,null,null,null,null,null,null,null,null,null,"1.111-16-16",null,46,92]
[null,null,null,null,null,null,null,null,null,null,null,null,null,null,null,null,null,null,null,null,null,null,null,"1.111-16-20",null,49,103]
[null,null,null,null,null,null,null,null,null,null,null,null,null,null,null,null,null,null,null,null,null,null,null,"1.111-20-16",null,48,94]
[null,null,null,null,null,null,null,null,null,null,null,null,null,null,null,null,null,null,null,null,null,null,null,"1.111-20-20",null,51,105]
[null,null,null,null,null,null,null,null,null,null,null,null,null,null,null,null,null,null,null,null,null,null,null,"1.111-20-24",null,52,109]
[null,null,null,null,null,null,null,null,null,null,null,null,null,null,null,null,null,null,null,null,null,null,null,"1.111-24-20",null,51,105]
[null,null,null,null,null,null,null,null,null,null,null,null,null,null,null,null,null,null,null,null,null,null,null,"1.111-24-24",null,52,109]
[null,null,null,null,null,null,null,null,null,null,null,null,null,null,null,null,null,null,null,null,null,null,null,"1.111-24-32",null,75,150]
[null,null,null,null,null,null,null,null,null,null,null,null,null,null,null,null,null,null,null,null,null,null,null,"1.111-32-24",null,58,115]
[null,null,null,null,null,null,null,null,null,null,null,null,null,null,null,null,null,null,null,null,null,null,null,"1.111-32-32",null,80,155]
[null,null,null,null,null,null,null,null,null,null,null,null,null,null,null,null,null,null,null,null,null,null,null,"1.111-32-36",null,95,175]
[null,null,null,null,null,null,null,null,null,null,null,null,null,null,null,null,null,null,null,null,null,null,null,"1.111-40-32",null,80,155]
[null,null,null,null,null,null,null,null,null,null,null,null,null,null,null,null,null,null,null,null,null,null,null,"1.111-40-36",null,95,175]
[null,null,null,null,null,null,null,null,null,null,null,null,null,null,null,null,null,null,null,null,null,null,null,"1.420-08-08",null,46,77]
[null,null,null,null,null,null,null,null,null,null,null,null,null,null,null,null,null,null,null,null,null,null,null,"1.420-08-10",null,44,78]
[null,null,null,null,null,null,null,null,null,null,null,null,null,null,null,null,null,null,null,null,null,null,null,"1.420-08-12",null,52,91]
[null,null,null,null,null,null,null,null,null,null,null,null,null,null,null,null,null,null,null,null,null,null,null,"1.420-12-08",null,48,79]
[null,null,null,null,null,null,null,null,null,null,null,null,null,null,null,null,null,null,null,null,null,null,null,"1.420-12-10",null,44,78]
[null,null,null,null,null,null,null,null,null,null,null,null,null,null,null,null,null,null,null,null,null,null,null,"1.420-12-12",null,49,88]
[null,null,null,null,null,null,null,null,null,null,null,null,null,null,null,null,null,null,null,null,null,null,null,"1.420-12-16",null,57,103]
[null,null,null,null,null,null,null,null,null,null,null,null,null,null,null,null,null,null,null,null,null,null,null,"1.420-16-12",null,52,91]
[null,null,null,null,null,null,null,null,null,null,null,null,null,null,null,null,null,null,null,null,null,null,null,"1.420-16-16",null,43,98]
[null,null,null,null,null,null,null,null,null,null,null,null,null,null,null,null,null,null,null,null,null,null,null,"1.420-16-20",null,62,116]
[null,null,null,null,null,null,null,null,null,null,null,null,null,null,null,null,null,null,null,null,null,null,null,"1.420-20-16",null,43,98]
[null,null,null,null,null,null,null,null,null,null,null,null,null,null,null,null,null,null,null,null,null,null,null,"1.420-20-20",null,60,114]
[null,null,null,null,null,null,null,null,null,null,null,null,null,null,null,null,null,null,null,null,null,null,null,"1.420-20-24",null,61,118]
[null,null,null,null,null,null,null,null,null,null,null,null,null,null,null,null,null,null,null,null,null,null,null,"1.420-24-20",null,62,116]
[null,null,null,null,null,null,null,null,null,null,null,null,null,null,null,null,null,null,null,null,null,null,null,"1.420-24-24",null,62,119]
[null,null,null,null,null,null,null,null,null,null,null,null,null,null,null,null,null,null,null,null,null,null,null,"1.420-24-32",null,67,141]
[null,null,null,null,null,null,null,null,null,null,null,null,null,null,null,null,null,null,null,null,null,null,null,"1.420-32-24",null,62,119]
[null,null,null,null,null,null,null,null,null,null,null,null,null,null,null,null,null,null,null,null,null,null,null,"1.420-32-32",null,62,137]
[null,null,null,null,null,null,null,null,null,null,null,null,null,null,null,null,null,null,null,null,null,null,null,"1.420-32-36",null,80,160]
[null,null,null,null,null,null,null,null,null,null,null,null,null,null,null,null,null,null,null,null,null,null,null,"1.420-40-32",null,64,139]
[null,null,null,null,null,null,null,null,null,null,null,null,null,null,null,null,null,null,null,null,null,null,null,"1.420-40-36",null,78,158]
[null,null,null,null,null,null,null,null,null,null,null,null,null,null,null,null,null,null,null,null,null,null,null,"1.420-40-48",null,91,166]
[null,null,null,null,null,null,null,null,null,null,null,null,null,null,null,null,null,null,null,null,null,null,null,"1.420-48-36",null,80,160]
[null,null,null,null,null,null,null,null,null,null,null,null,null,null,null,null,null,null,null,null,null,null,null,"1.420-48-48",null,91,166]
[null,null,null,null,null,null,null,null,null,null,null,null,null,null,null,null,null,null,null,null,null,null,null,"1.420-56-48",null,104,179]
[null,null,null,null,null,null,null,null,null,null,null,null,null,null,null,null,null,null,null,null,null,null,null,"1.421-08-08",null,46,77]
[null,null,null,null,null,null,null,null,null,null,null,null,null,null,null,null,null,null,null,null,null,null,null,"1.421-08-10",null,46,80]
[null,null,null,null,null,null,null,null,null,null,null,null,null,null,null,null,null,null,null,null,null,null,null,"1.421-08-12",null,54,92]
[null,null,null,null,null,null,null,null,null,null,null,null,null,null,null,null,null,null,null,null,null,null,null,"1.421-12-08",null,47,78]
[null,null,null,null,null,null,null,null,null,null,null,null,null,null,null,null,null,null,null,null,null,null,null,"1.421-12-10",null,44,78]
[null,null,null,null,null,null,null,null,null,null,null,null,null,null,null,null,null,null,null,null,null,null,null,"1.421-12-12",null,53,91]
[null,null,null,null,null,null,null,null,null,null,null,null,null,null,null,null,null,null,null,null,null,null,null,"1.421-12-16",null,55,101]
[null,null,null,null,null,null,null,null,null,null,null,null,null,null,null,null,null,null,null,null,null,null,null,"1.421-16-12",null,56,95]
[null,null,null,null,null,null,null,null,null,null,null,null,null,null,null,null,null,null,null,null,null,null,null,"1.421-16-16",null,57,103]
[null,null,null,null,null,null,null,null,null,null,null,null,null,null,null,null,null,null,null,null,null,null,null,"1.421-16-20",null,64,118]
[null,null,null,null,null,null,null,null,null,null,null,null,null,null,null,null,null,null,null,null,null,null,null,"1.421-20-16",null,52,98]
[null,null,null,null,null,null,null,null,null,null,null,null,null,null,null,null,null,null,null,null,null,null,null,"1.421-20-20",null,60,114]
[null,null,null,null,null,null,null,null,null,null,null,null,null,null,null,null,null,null,null,null,null,null,null,"1.421-20-24",null,68,122]
[null,null,null,null,null,null,null,null,null,null,null,null,null,null,null,null,null,null,null,null,null,null,null,"1.421-24-20",null,66,120]
[null,null,null,null,null,null,null,null,null,null,null,null,null,null,null,null,null,null,null,null,null,null,null,"1.421-24-24",null,64,121]
[null,null,null,null,null,null,null,null,null,null,null,null,null,null,null,null,null,null,null,null,null,null,null,"1.421-24-32",null,62,137]
[null,null,null,null,null,null,null,null,null,null,null,null,null,null,null,null,null,null,null,null,null,null,null,"1.421-32-24",null,75,132]
[null,null,null,null,null,null,null,null,null,null,null,null,null,null,null,null,null,null,null,null,null,null,null,"1.421-32-32",null,76,151]
[null,null,null,null,null,null,null,null,null,null,null,null,null,null,null,null,null,null,null,null,null,null,null,"1.450-08-08",20,49,74]
[null,null,null,null,null,null,null,null,null,null,null,null,null,null,null,null,null,null,null,null,null,null,null,"1.450-08-10",26,63,86]
[null,null,null,null,null,null,null,null,null,null,null,null,null,null,null,null,null,null,null,null,null,null,null,"1.450-08-12",31,76,103]
[null,null,null,null,null,null,null,null,null,null,null,null,null,null,null,null,null,null,null,null,null,null,null,"1.450-12-08",23,38,82]
[null,null,null,null,null,null,null,null,null,null,null,null,null,null,null,null,null,null,null,null,null,null,null,"1.450-12-10",24,63,87]
[null,null,null,null,null,null,null,null,null,null,null,null,null,null,null,null,null,null,null,null,null,null,null,"1.450-12-12",31,76,103]
[null,null,null,null,null,null,null,null,null,null,null,null,null,null,null,null,null,null,null,null,null,null,null,"1.450-12-16",32,75,121]
[null,null,null,null,null,null,null,null,null,null,null,null,null,null,null,null,null,null,null,null,null,null,null,"1.450-16-12",31,75,102]
[null,null,null,null,null,null,null,null,null,null,null,null,null,null,null,null,null,null,null,null,null,null,null,"1.450-16-16",32,82,128]
[null,null,null,null,null,null,null,null,null,null,null,null,null,null,null,null,null,null,null,null,null,null,null,"1.450-16-20",45,105,159]
[null,null,null,null,null,null,null,null,null,null,null,null,null,null,null,null,null,null,null,null,null,null,null,"1.450-20-16",31,81,127]
[null,null,null,null,null,null,null,null,null,null,null,null,null,null,null,null,null,null,null,null,null,null,null,"1.450-20-20",44,104,158]
[null,null,null,null,null,null,null,null,null,null,null,null,null,null,null,null,null,null,null,null,null,null,null,"1.450-20-24",43,101,158]
[null,null,null,null,null,null,null,null,null,null,null,null,null,null,null,null,null,null,null,null,null,null,null,"1.450-24-20",45,104,158]
[null,null,null,null,null,null,null,null,null,null,null,null,null,null,null,null,null,null,null,null,null,null,null,"1.450-24-24",48,111,168]
[null,null,null,null,null,null,null,null,null,null,null,null,null,null,null,null,null,null,null,null,null,null,null,"1.450-24-32",50,116,191]
[null,null,null,null,null,null,null,null,null,null,null,null,null,null,null,null,null,null,null,null,null,null,null,"1.450-32-24",48,112,169]
[null,null,null,null,null,null,null,null,null,null,null,null,null,null,null,null,null,null,null,null,null,null,null,"1.450-32-32",50,127,202]
[null,null,null,null,null,null,null,null,null,null,null,null,null,null,null,null,null,null,null,null,null,null,null,"1.450-32-36",55,150,230]
[null,null,null,null,null,null,null,null,null,null,null,null,null,null,null,null,null,null,null,null,null,null,null,"1.450-40-32",50,116,191]
[null,null,null,null,null,null,null,null,null,null,null,null,null,null,null,null,null,null,null,null,null,null,null,"1.450-40-36",53,148,228]
[null,null,null,null,null,null,null,null,null,null,null,null,null,null,null,null,null,null,null,null,null,null,null,"1.450-40-48",55,205,226]
[null,null,null,null,null,null,null,null,null,null,null,null,null,null,null,null,null,null,null,null,null,null,null,"1.450-48-36",54,149,229]
[null,null,null,null,null,null,null,null,null,null,null,null,null,null,null,null,null,null,null,null,null,null,null,"1.450-48-48",60,150,225]
[null,null,null,null,null,null,null,null,null,null,null,null,null,null,null,null,null,null,null,null,null,null,null,"1.450-56-48",56,160,235]
[null,null,null,null,null,null,null,null,null,null,null,null,null,null,null,null,null,null,null,null,null,null,null,"1.451-08-08",24,49,80]
[null,null,null,null,null,null,null,null,null,null,null,null,null,null,null,null,null,null,null,null,null,null,null,"1.451-08-10",29,62,96]
[null,null,null,null,null,null,null,null,null,null,null,null,null,null,null,null,null,null,null,null,null,null,null,"1.451-08-12",32,76,115]
[null,null,null,null,null,null,null,null,null,null,null,null,null,null,null,null,null,null,null,null,null,null,null,"1.451-12-08",23,51,82]
[null,null,null,null,null,null,null,null,null,null,null,null,null,null,null,null,null,null,null,null,null,null,null,"1.451-12-10",27,63,97]
[null,null,null,null,null,null,null,null,null,null,null,null,null,null,null,null,null,null,null,null,null,null,null,"1.451-12-12",33,74,113]
[null,null,null,null,null,null,null,null,null,null,null,null,null,null,null,null,null,null,null,null,null,null,null,"1.451-12-16",34,75,121]
[null,null,null,null,null,null,null,null,null,null,null,null,null,null,null,null,null,null,null,null,null,null,null,"1.451-16-12",32,76,115]
[null,null,null,null,null,null,null,null,null,null,null,null,null,null,null,null,null,null,null,null,null,null,null,"1.451-16-16",36,83,129]
[null,null,null,null,null,null,null,null,null,null,null,null,null,null,null,null,null,null,null,null,null,null,null,"1.451-16-20",50,106,160]
[null,null,null,null,null,null,null,null,null,null,null,null,null,null,null,null,null,null,null,null,null,null,null,"1.451-20-16",35,84,130]
[null,null,null,null,null,null,null,null,null,null,null,null,null,null,null,null,null,null,null,null,null,null,null,"1.451-20-20",47,102,156]
[null,null,null,null,null,null,null,null,null,null,null,null,null,null,null,null,null,null,null,null,null,null,null,"1.451-20-24",47,104,161]
[null,null,null,null,null,null,null,null,null,null,null,null,null,null,null,null,null,null,null,null,null,null,null,"1.451-24-20",49,103,157]
[null,null,null,null,null,null,null,null,null,null,null,null,null,null,null,null,null,null,null,null,null,null,null,"1.451-24-24",53,112,169]
[null,null,null,null,null,null,null,null,null,null,null,null,null,null,null,null,null,null,null,null,null,null,null,"1.451-24-32",53,112,187]
[null,null,null,null,null,null,null,null,null,null,null,null,null,null,null,null,null,null,null,null,null,null,null,"1.451-32-24",54,115,172]
[null,null,null,null,null,null,null,null,null,null,null,null,null,null,null,null,null,null,null,null,null,null,null,"1.451-32-32",62,123,198]
[null,null,null,null,null,null,null,null,null,null,null,null,null,null,null,null,null,null,null,null,null,null,null,"1.470-08-08",39,42,73]
[null,null,null,null,null,null,null,null,null,null,null,null,null,null,null,null,null,null,null,null,null,null,null,"1.470-08-10",49,55,89]
[null,null,null,null,null,null,null,null,null,null,null,null,null,null,null,null,null,null,null,null,null,null,null,"1.470-08-12",60,60,99]
[null,null,null,null,null,null,null,null,null,null,null,null,null,null,null,null,null,null,null,null,null,null,null,"1.470-12-08",39,42,73]
[null,null,null,null,null,null,null,null,null,null,null,null,null,null,null,null,null,null,null,null,null,null,null,"1.470-12-10",47,52,86]
[null,null,null,null,null,null,null,null,null,null,null,null,null,null,null,null,null,null,null,null,null,null,null,"1.470-12-12",60,60,99]
[null,null,null,null,null,null,null,null,null,null,null,null,null,null,null,null,null,null,null,null,null,null,null,"1.470-12-16",68,65,111]
[null,null,null,null,null,null,null,null,null,null,null,null,null,null,null,null,null,null,null,null,null,null,null,"1.470-16-12",61,63,102]
[null,null,null,null,null,null,null,null,null,null,null,null,null,null,null,null,null,null,null,null,null,null,null,"1.470-16-16",68,65,111]
[null,null,null,null,null,null,null,null,null,null,null,null,null,null,null,null,null,null,null,null,null,null,null,"1.470-16-20",82,94,148]
[null,null,null,null,null,null,null,null,null,null,null,null,null,null,null,null,null,null,null,null,null,null,null,"1.470-20-16",68,65,111]
[null,null,null,null,null,null,null,null,null,null,null,null,null,null,null,null,null,null,null,null,null,null,null,"1.470-20-20",80,94,148]
[null,null,null,null,null,null,null,null,null,null,null,null,null,null,null,null,null,null,null,null,null,null,null,"1.470-20-24",109,105,162]
[null,null,null,null,null,null,null,null,null,null,null,null,null,null,null,null,null,null,null,null,null,null,null,"1.470-24-20",82,94,148]
[null,null,null,null,null,null,null,null,null,null,null,null,null,null,null,null,null,null,null,null,null,null,null,"1.470-24-24",108,105,162]
[null,null,null,null,null,null,null,null,null,null,null,null,null,null,null,null,null,null,null,null,null,null,null,"1.470-24-32",118,121,196]
[null,null,null,null,null,null,null,null,null,null,null,null,null,null,null,null,null,null,null,null,null,null,null,"1.470-32-24",108,105,162]
[null,null,null,null,null,null,null,null,null,null,null,null,null,null,null,null,null,null,null,null,null,null,null,"1.470-32-32",114,121,196]
[null,null,null,null,null,null,null,null,null,null,null,null,null,null,null,null,null,null,null,null,null,null,null,"1.470-32-36",128,155,235]
[null,null,null,null,null,null,null,null,null,null,null,null,null,null,null,null,null,null,null,null,null,null,null,"1.470-40-32",117,121,196]
[null,null,null,null,null,null,null,null,null,null,null,null,null,null,null,null,null,null,null,null,null,null,null,"1.470-40-36",129,155,235]
[null,null,null,null,null,null,null,null,null,null,null,null,null,null,null,null,null,null,null,null,null,null,null,"1.470-40-48",205,170,245]
[null,null,null,null,null,null,null,null,null,null,null,null,null,null,null,null,null,null,null,null,null,null,null,"1.470-48-36",130,155,235]
[null,null,null,null,null,null,null,null,null,null,null,null,null,null,null,null,null,null,null,null,null,null,null,"1.470-48-48",130,150,225]
[null,null,null,null,null,null,null,null,null,null,null,null,null,null,null,null,null,null,null,null,null,null,null,"1.470-56-48",175,170,245]
[null,null,null,null,null,null,null,null,null,null,null,null,null,null,null,null,null,null,null,null,null,null,null,"1.471-08-08",39,42,73]
[null,null,null,null,null,null,null,null,null,null,null,null,null,null,null,null,null,null,null,null,null,null,null,"1.471-08-10",50,56,90]
[null,null,null,null,null,null,null,null,null,null,null,null,null,null,null,null,null,null,null,null,null,null,null,"1.471-08-12",62,60,99]
[null,null,null,null,null,null,null,null,null,null,null,null,null,null,null,null,null,null,null,null,null,null,null,"1.471-12-08",39,42,73]
[null,null,null,null,null,null,null,null,null,null,null,null,null,null,null,null,null,null,null,null,null,null,null,"1.471-12-10",52,52,86]
[null,null,null,null,null,null,null,null,null,null,null,null,null,null,null,null,null,null,null,null,null,null,null,"1.471-12-12",62,60,99]
[null,null,null,null,null,null,null,null,null,null,null,null,null,null,null,null,null,null,null,null,null,null,null,"1.471-12-16",72,65,111]
[null,null,null,null,null,null,null,null,null,null,null,null,null,null,null,null,null,null,null,null,null,null,null,"1.471-16-12",65,60,99]
[null,null,null,null,null,null,null,null,null,null,null,null,null,null,null,null,null,null,null,null,null,null,null,"1.471-16-16",73,65,111]
[null,null,null,null,null,null,null,null,null,null,null,null,null,null,null,null,null,null,null,null,null,null,null,"1.471-16-20",86,94,148]
[null,null,null,null,null,null,null,null,null,null,null,null,null,null,null,null,null,null,null,null,null,null,null,"1.471-20-16",71,65,111]
[null,null,null,null,null,null,null,null,null,null,null,null,null,null,null,null,null,null,null,null,null,null,null,"1.471-20-20",82,94,148]
[null,null,null,null,null,null,null,null,null,null,null,null,null,null,null,null,null,null,null,null,null,null,null,"1.471-20-24",104,105,162]
[null,null,null,null,null,null,null,null,null,null,null,null,null,null,null,null,null,null,null,null,null,null,null,"1.471-24-20",88,94,148]
[null,null,null,null,null,null,null,null,null,null,null,null,null,null,null,null,null,null,null,null,null,null,null,"1.471-24-24",104,105,162]
[null,null,null,null,null,null,null,null,null,null,null,null,null,null,null,null,null,null,null,null,null,null,null,"1.471-24-32",124,121,196]
[null,null,null,null,null,null,null,null,null,null,null,null,null,null,null,null,null,null,null,null,null,null,null,"1.471-32-24",104,105,162]
[null,null,null,null,null,null,null,null,null,null,null,null,null,null,null,null,null,null,null,null,null,null,null,"1.471-32-32",124,121,196]
[null,null,null,null,null,null,null,null,null,null,null,null,null,null,null,null,null,null,null,null,null,null,null,"4.051-03-04",null,26,60]
[null,null,null,null,null,null,null,null,null,null,null,null,null,null,null,null,null,null,null,null,null,null,null,"4.051-04-04",null,28,62]
[null,null,null,null,null,null,null,null,null,null,null,null,null,null,null,null,null,null,null,null,null,null,null,"4.051-05-04",null,30,64]
[null,null,null,null,null,null,null,null,null,null,null,null,null,null,null,null,null,null,null,null,null,null,null,"4.051-05-06",null,30,64]
[null,null,null,null,null,null,null,null,null,null,null,null,null,null,null,null,null,null,null,null,null,null,null,"4.051-06-06",null,30,64]
[null,null,null,null,null,null,null,null,null,null,null,null,null,null,null,null,null,null,null,null,null,null,null,"4.051-06-08",null,34,72]
[null,null,null,null,null,null,null,null,null,null,null,null,null,null,null,null,null,null,null,null,null,null,null,"4.051-08-06",null,29,63]
[null,null,null,null,null,null,null,null,null,null,null,null,null,null,null,null,null,null,null,null,null,null,null,"4.051-08-08",null,34,72]
[null,null,null,null,null,null,null,null,null,null,null,null,null,null,null,null,null,null,null,null,null,null,null,"4.051-08-10",null,33,75]
[null,null,null,null,null,null,null,null,null,null,null,null,null,null,null,null,null,null,null,null,null,null,null,"4.051-10-08",null,34,72]
[null,null,null,null,null,null,null,null,null,null,null,null,null,null,null,null,null,null,null,null,null,null,null,"4.051-10-10",null,31,73]
[null,null,null,null,null,null,null,null,null,null,null,null,null,null,null,null,null,null,null,null,null,null,null,"4.051-10-12",null,34,80]
[null,null,null,null,null,null,null,null,null,null,null,null,null,null,null,null,null,null,null,null,null,null,null,"4.051-12-10",null,32,74]
[null,null,null,null,null,null,null,null,null,null,null,null,null,null,null,null,null,null,null,null,null,null,null,"4.051-12-12",null,37,83]
[null,null,null,null,null,null,null,null,null,null,null,null,null,null,null,null,null,null,null,null,null,null,null,"4.051-12-16",null,42,97]
[null,null,null,null,null,null,null,null,null,null,null,null,null,null,null,null,null,null,null,null,null,null,null,"4.051-16-12",null,37,83]
[null,null,null,null,null,null,null,null,null,null,null,null,null,null,null,null,null,null,null,null,null,null,null,"4.051-16-16",null,41,96]
[null,null,null,null,null,null,null,null,null,null,null,null,null,null,null,null,null,null,null,null,null,null,null,"4.051-20-16",null,43,98]
[null,null,null,null,null,null,null,null,null,null,null,null,null,null,null,null,null,null,null,null,null,null,null,"4.055-03-04",17,37,71]
[null,null,null,null,null,null,null,null,null,null,null,null,null,null,null,null,null,null,null,null,null,null,null,"4.055-04-04",18,38,72]
[null,null,null,null,null,null,null,null,null,null,null,null,null,null,null,null,null,null,null,null,null,null,null,"4.055-05-04",18,38,72]
[null,null,null,null,null,null,null,null,null,null,null,null,null,null,null,null,null,null,null,null,null,null,null,"4.055-05-06",19,41,75]
[null,null,null,null,null,null,null,null,null,null,null,null,null,null,null,null,null,null,null,null,null,null,null,"4.055-06-06",20,42,76]
[null,null,null,null,null,null,null,null,null,null,null,null,null,null,null,null,null,null,null,null,null,null,null,"4.055-06-08",24,52,90]
[null,null,null,null,null,null,null,null,null,null,null,null,null,null,null,null,null,null,null,null,null,null,null,"4.055-08-06",19,40,74]
[null,null,null,null,null,null,null,null,null,null,null,null,null,null,null,null,null,null,null,null,null,null,null,"4.055-08-08",24,51,89]
[null,null,null,null,null,null,null,null,null,null,null,null,null,null,null,null,null,null,null,null,null,null,null,"4.055-08-10",29,64,106]
[null,null,null,null,null,null,null,null,null,null,null,null,null,null,null,null,null,null,null,null,null,null,null,"4.055-10-08",23,50,88]
[null,null,null,null,null,null,null,null,null,null,null,null,null,null,null,null,null,null,null,null,null,null,null,"4.055-10-10",27,63,108]
[null,null,null,null,null,null,null,null,null,null,null,null,null,null,null,null,null,null,null,null,null,null,null,"4.055-10-12",33,75,121]
[null,null,null,null,null,null,null,null,null,null,null,null,null,null,null,null,null,null,null,null,null,null,null,"4.055-12-10",28,63,105]
[null,null,null,null,null,null,null,null,null,null,null,null,null,null,null,null,null,null,null,null,null,null,null,"4.055-12-12",33,75,121]
[null,null,null,null,null,null,null,null,null,null,null,null,null,null,null,null,null,null,null,null,null,null,null,"4.055-12-16",36,84,139]
[null,null,null,null,null,null,null,null,null,null,null,null,null,null,null,null,null,null,null,null,null,null,null,"4.055-16-12",33,75,121]
[null,null,null,null,null,null,null,null,null,null,null,null,null,null,null,null,null,null,null,null,null,null,null,"4.055-16-16",36,84,139]
[null,null,null,null,null,null,null,null,null,null,null,null,null,null,null,null,null,null,null,null,null,null,null,"4.055-20-16",39,84,139]
[null,null,null,null,null,null,null,null,null,null,null,null,null,null,null,null,null,null,null,null,null,null,null,"4.059-03-04",29,27,61]
[null,null,null,null,null,null,null,null,null,null,null,null,null,null,null,null,null,null,null,null,null,null,null,"4.059-04-04",31,27,61]
[null,null,null,null,null,null,null,null,null,null,null,null,null,null,null,null,null,null,null,null,null,null,null,"4.059-05-04",33,27,61]
[null,null,null,null,null,null,null,null,null,null,null,null,null,null,null,null,null,null,null,null,null,null,null,"4.059-05-06",35,31,65]
[null,null,null,null,null,null,null,null,null,null,null,null,null,null,null,null,null,null,null,null,null,null,null,"4.059-06-06",35,31,65]
[null,null,null,null,null,null,null,null,null,null,null,null,null,null,null,null,null,null,null,null,null,null,null,"4.059-06-08",47,40,78]
[null,null,null,null,null,null,null,null,null,null,null,null,null,null,null,null,null,null,null,null,null,null,null,"4.059-08-06",33,31,65]
[null,null,null,null,null,null,null,null,null,null,null,null,null,null,null,null,null,null,null,null,null,null,null,"4.059-08-08",44,42,80]
[null,null,null,null,null,null,null,null,null,null,null,null,null,null,null,null,null,null,null,null,null,null,null,"4.059-08-10",56,52,94]
[null,null,null,null,null,null,null,null,null,null,null,null,null,null,null,null,null,null,null,null,null,null,null,"4.059-10-08",46,42,80]
[null,null,null,null,null,null,null,null,null,null,null,null,null,null,null,null,null,null,null,null,null,null,null,"4.059-10-10",53,52,94]
[null,null,null,null,null,null,null,null,null,null,null,null,null,null,null,null,null,null,null,null,null,null,null,"4.059-10-12",60,59,106]
[null,null,null,null,null,null,null,null,null,null,null,null,null,null,null,null,null,null,null,null,null,null,null,"4.059-12-10",55,52,94]
[null,null,null,null,null,null,null,null,null,null,null,null,null,null,null,null,null,null,null,null,null,null,null,"4.059-12-12",60,60,106]
[null,null,null,null,null,null,null,null,null,null,null,null,null,null,null,null,null,null,null,null,null,null,null,"4.059-12-16",72,65,120]
[null,null,null,null,null,null,null,null,null,null,null,null,null,null,null,null,null,null,null,null,null,null,null,"4.059-16-12",61,60,106]
[null,null,null,null,null,null,null,null,null,null,null,null,null,null,null,null,null,null,null,null,null,null,null,"4.059-16-16",71,65,120]
[null,null,null,null,null,null,null,null,null,null,null,null,null,null,null,null,null,null,null,null,null,null,null,"4.059-20-16",74,65,120]
[null,null,null,null,null,null,null,null,null,null,null,null,null,null,null,null,null,null,null,null,null,null,null,"4.081-03-04",null,29,63]
[null,null,null,null,null,null,null,null,null,null,null,null,null,null,null,null,null,null,null,null,null,null,null,"4.081-04-04",null,29,63]
[null,null,null,null,null,null,null,null,null,null,null,null,null,null,null,null,null,null,null,null,null,null,null,"4.081-05-04",null,28,62]
[null,null,null,null,null,null,null,null,null,null,null,null,null,null,null,null,null,null,null,null,null,null,null,"4.081-05-06",null,29,63]
[null,null,null,null,null,null,null,null,null,null,null,null,null,null,null,null,null,null,null,null,null,null,null,"4.081-06-06",null,31,65]
[null,null,null,null,null,null,null,null,null,null,null,null,null,null,null,null,null,null,null,null,null,null,null,"4.081-06-08",null,35,73]
[null,null,null,null,null,null,null,null,null,null,null,null,null,null,null,null,null,null,null,null,null,null,null,"4.081-08-06",null,30,64]
[null,null,null,null,null,null,null,null,null,null,null,null,null,null,null,null,null,null,null,null,null,null,null,"4.081-08-08",null,30,68]
[null,null,null,null,null,null,null,null,null,null,null,null,null,null,null,null,null,null,null,null,null,null,null,"4.081-08-10",null,35,77]
[null,null,null,null,null,null,null,null,null,null,null,null,null,null,null,null,null,null,null,null,null,null,null,"4.081-10-08",null,37,75]
[null,null,null,null,null,null,null,null,null,null,null,null,null,null,null,null,null,null,null,null,null,null,null,"4.081-10-10",null,36,78]
[null,null,null,null,null,null,null,null,null,null,null,null,null,null,null,null,null,null,null,null,null,null,null,"4.081-10-12",null,37,83]
[null,null,null,null,null,null,null,null,null,null,null,null,null,null,null,null,null,null,null,null,null,null,null,"4.081-12-10/SW41",null,36,78]
[null,null,null,null,null,null,null,null,null,null,null,null,null,null,null,null,null,null,null,null,null,null,null,"4.081-12-10/SW46",null,36,78]
[null,null,null,null,null,null,null,null,null,null,null,null,null,null,null,null,null,null,null,null,null,null,null,"4.081-12-12/SW41",null,40,86]
[null,null,null,null,null,null,null,null,null,null,null,null,null,null,null,null,null,null,null,null,null,null,null,"4.081-12-12/SW46",null,40,86]
[null,null,null,null,null,null,null,null,null,null,null,null,null,null,null,null,null,null,null,null,null,null,null,"4.081-12-16/SW46",null,43,98]
[null,null,null,null,null,null,null,null,null,null,null,null,null,null,null,null,null,null,null,null,null,null,null,"4.081-16-12",null,39,85]
[null,null,null,null,null,null,null,null,null,null,null,null,null,null,null,null,null,null,null,null,null,null,null,"4.081-16-16",null,45,100]
[null,null,null,null,null,null,null,null,null,null,null,null,null,null,null,null,null,null,null,null,null,null,null,"4.081-20-16",null,44,99]
[null,null,null,null,null,null,null,null,null,null,null,null,null,null,null,null,null,null,null,null,null,null,null,"4.085-03-04",18,38,72]
[null,null,null,null,null,null,null,null,null,null,null,null,null,null,null,null,null,null,null,null,null,null,null,"4.085-04-04",18,39,73]
[null,null,null,null,null,null,null,null,null,null,null,null,null,null,null,null,null,null,null,null,null,null,null,"4.085-05-04",18,38,72]
[null,null,null,null,null,null,null,null,null,null,null,null,null,null,null,null,null,null,null,null,null,null,null,"4.085-05-06",20,41,75]
[null,null,null,null,null,null,null,null,null,null,null,null,null,null,null,null,null,null,null,null,null,null,null,"4.085-06-06",21,42,76]
[null,null,null,null,null,null,null,null,null,null,null,null,null,null,null,null,null,null,null,null,null,null,null,"4.085-06-08",25,53,91]
[null,null,null,null,null,null,null,null,null,null,null,null,null,null,null,null,null,null,null,null,null,null,null,"4.085-08-06",20,41,75]
[null,null,null,null,null,null,null,null,null,null,null,null,null,null,null,null,null,null,null,null,null,null,null,"4.085-08-08",26,52,90]
[null,null,null,null,null,null,null,null,null,null,null,null,null,null,null,null,null,null,null,null,null,null,null,"4.085-08-10",30,65,107]
[null,null,null,null,null,null,null,null,null,null,null,null,null,null,null,null,null,null,null,null,null,null,null,"4.085-10-08",27,53,91]
[null,null,null,null,null,null,null,null,null,null,null,null,null,null,null,null,null,null,null,null,null,null,null,"4.085-10-10",29,70,112]
[null,null,null,null,null,null,null,null,null,null,null,null,null,null,null,null,null,null,null,null,null,null,null,"4.085-10-12",33,76,122]
[null,null,null,null,null,null,null,null,null,null,null,null,null,null,null,null,null,null,null,null,null,null,null,"4.085-12-10/SW41",32,66,108]
[null,null,null,null,null,null,null,null,null,null,null,null,null,null,null,null,null,null,null,null,null,null,null,"4.085-12-10/SW46",32,66,108]
[null,null,null,null,null,null,null,null,null,null,null,null,null,null,null,null,null,null,null,null,null,null,null,"4.085-12-12/SW41",37,78,124]
[null,null,null,null,null,null,null,null,null,null,null,null,null,null,null,null,null,null,null,null,null,null,null,"4.085-12-12/SW46",37,78,124]
[null,null,null,null,null,null,null,null,null,null,null,null,null,null,null,null,null,null,null,null,null,null,null,"4.085-12-16/SW46",40,87,142]
[null,null,null,null,null,null,null,null,null,null,null,null,null,null,null,null,null,null,null,null,null,null,null,"4.085-16-12",35,72,118]
[null,null,null,null,null,null,null,null,null,null,null,null,null,null,null,null,null,null,null,null,null,null,null,"4.085-16-16",39,85,140]
[null,null,null,null,null,null,null,null,null,null,null,null,null,null,null,null,null,null,null,null,null,null,null,"4.085-20-16",39,85,140]
[null,null,null,null,null,null,null,null,null,null,null,null,null,null,null,null,null,null,null,null,null,null,null,"4.089-03-04",33,27,61]
[null,null,null,null,null,null,null,null,null,null,null,null,null,null,null,null,null,null,null,null,null,null,null,"4.089-04-04",33,27,61]
[null,null,null,null,null,null,null,null,null,null,null,null,null,null,null,null,null,null,null,null,null,null,null,"4.089-05-04",31,27,61]
[null,null,null,null,null,null,null,null,null,null,null,null,null,null,null,null,null,null,null,null,null,null,null,"4.089-05-06",34,31,65]
[null,null,null,null,null,null,null,null,null,null,null,null,null,null,null,null,null,null,null,null,null,null,null,"4.089-06-06",36,31,65]
[null,null,null,null,null,null,null,null,null,null,null,null,null,null,null,null,null,null,null,null,null,null,null,"4.089-06-08",43,42,80]
[null,null,null,null,null,null,null,null,null,null,null,null,null,null,null,null,null,null,null,null,null,null,null,"4.089-08-06",36,31,65]
[null,null,null,null,null,null,null,null,null,null,null,null,null,null,null,null,null,null,null,null,null,null,null,"4.089-08-08",46,41,79]
[null,null,null,null,null,null,null,null,null,null,null,null,null,null,null,null,null,null,null,null,null,null,null,"4.089-08-10",57,53,95]
[null,null,null,null,null,null,null,null,null,null,null,null,null,null,null,null,null,null,null,null,null,null,null,"4.089-10-08",47,43,81]
[null,null,null,null,null,null,null,null,null,null,null,null,null,null,null,null,null,null,null,null,null,null,null,"4.089-10-10",57,53,95]
[null,null,null,null,null,null,null,null,null,null,null,null,null,null,null,null,null,null,null,null,null,null,null,"4.089-10-12",63,60,106]
[null,null,null,null,null,null,null,null,null,null,null,null,null,null,null,null,null,null,null,null,null,null,null,"4.089-12-10/SW41",59,53,95]
[null,null,null,null,null,null,null,null,null,null,null,null,null,null,null,null,null,null,null,null,null,null,null,"4.089-12-10/SW46",59,53,95]
[null,null,null,null,null,null,null,null,null,null,null,null,null,null,null,null,null,null,null,null,null,null,null,"4.089-12-12/SW41",63,60,106]
[null,null,null,null,null,null,null,null,null,null,null,null,null,null,null,null,null,null,null,null,null,null,null,"4.089-12-12/SW46",63,60,106]
[null,null,null,null,null,null,null,null,null,null,null,null,null,null,null,null,null,null,null,null,null,null,null,"4.089-12-16/SW46",76,65,120]
[null,null,null,null,null,null,null,null,null,null,null,null,null,null,null,null,null,null,null,null,null,null,null,"4.089-16-12",63,60,106]
[null,null,null,null,null,null,null,null,null,null,null,null,null,null,null,null,null,null,null,null,null,null,null,"4.089-16-16",75,65,120]
[null,null,null,null,null,null,null,null,null,null,null,null,null,null,null,null,null,null,null,null,null,null,null,"4.089-20-16",76,65,120]
[null,null,null,null,null,null,null,null,null,null,null,null,null,null,null,null,null,null,null,null,null,null,null,"4.420-08-08",null,51,89]
[null,null,null,null,null,null,null,null,null,null,null,null,null,null,null,null,null,null,null,null,null,null,null,"4.420-08-10",null,52,94]
[null,null,null,null,null,null,null,null,null,null,null,null,null,null,null,null,null,null,null,null,null,null,null,"4.420-08-12",null,55,101]
[null,null,null,null,null,null,null,null,null,null,null,null,null,null,null,null,null,null,null,null,null,null,null,"4.420-12-08",null,52,90]
[null,null,null,null,null,null,null,null,null,null,null,null,null,null,null,null,null,null,null,null,null,null,null,"4.420-12-10",null,49,91]
[null,null,null,null,null,null,null,null,null,null,null,null,null,null,null,null,null,null,null,null,null,null,null,"4.420-12-12",null,57,103]
[null,null,null,null,null,null,null,null,null,null,null,null,null,null,null,null,null,null,null,null,null,null,null,"4.420-12-16",null,55,110]
[null,null,null,null,null,null,null,null,null,null,null,null,null,null,null,null,null,null,null,null,null,null,null,"4.420-16-12",null,57,103]
[null,null,null,null,null,null,null,null,null,null,null,null,null,null,null,null,null,null,null,null,null,null,null,"4.420-16-16",null,56,111]
[null,null,null,null,null,null,null,null,null,null,null,null,null,null,null,null,null,null,null,null,null,null,null,"4.420-20-16",null,56,111]
[null,null,null,null,null,null,null,null,null,null,null,null,null,null,null,null,null,null,null,null,null,null,null,"4.421-08-08",null,53,91]
[null,null,null,null,null,null,null,null,null,null,null,null,null,null,null,null,null,null,null,null,null,null,null,"4.421-08-10",null,53,95]
[null,null,null,null,null,null,null,null,null,null,null,null,null,null,null,null,null,null,null,null,null,null,null,"4.421-08-12",null,56,102]
[null,null,null,null,null,null,null,null,null,null,null,null,null,null,null,null,null,null,null,null,null,null,null,"4.421-12-08",null,53,91]
[null,null,null,null,null,null,null,null,null,null,null,null,null,null,null,null,null,null,null,null,null,null,null,"4.421-12-10",null,50,92]
[null,null,null,null,null,null,null,null,null,null,null,null,null,null,null,null,null,null,null,null,null,null,null,"4.421-12-12",null,58,104]
[null,null,null,null,null,null,null,null,null,null,null,null,null,null,null,null,null,null,null,null,null,null,null,"4.421-12-16",null,57,112]
[null,null,null,null,null,null,null,null,null,null,null,null,null,null,null,null,null,null,null,null,null,null,null,"4.421-16-12",null,58,104]
[null,null,null,null,null,null,null,null,null,null,null,null,null,null,null,null,null,null,null,null,null,null,null,"4.421-16-16",null,57,112]
[null,null,null,null,null,null,null,null,null,null,null,null,null,null,null,null,null,null,null,null,null,null,null,"4.421-20-16",null,58,113]
[null,null,null,null,null,null,null,null,null,null,null,null,null,null,null,null,null,null,null,null,null,null,null,"4.450-08-08",23,44,89]
[null,null,null,null,null,null,null,null,null,null,null,null,null,null,null,null,null,null,null,null,null,null,null,"4.450-08-10",27,66,108]
[null,null,null,null,null,null,null,null,null,null,null,null,null,null,null,null,null,null,null,null,null,null,null,"4.450-08-12",29,74,120]
[null,null,null,null,null,null,null,null,null,null,null,null,null,null,null,null,null,null,null,null,null,null,null,"4.450-12-08",23,45,87]
[null,null,null,null,null,null,null,null,null,null,null,null,null,null,null,null,null,null,null,null,null,null,null,"4.450-12-10",28,66,108]
[null,null,null,null,null,null,null,null,null,null,null,null,null,null,null,null,null,null,null,null,null,null,null,"4.450-12-12",33,74,120]
[null,null,null,null,null,null,null,null,null,null,null,null,null,null,null,null,null,null,null,null,null,null,null,"4.450-12-16",32,76,131]
[null,null,null,null,null,null,null,null,null,null,null,null,null,null,null,null,null,null,null,null,null,null,null,"4.450-16-12",31,73,119]
[null,null,null,null,null,null,null,null,null,null,null,null,null,null,null,null,null,null,null,null,null,null,null,"4.450-16-16",32,82,137]
[null,null,null,null,null,null,null,null,null,null,null,null,null,null,null,null,null,null,null,null,null,null,null,"4.450-20-16",31,72,127]
[null,null,null,null,null,null,null,null,null,null,null,null,null,null,null,null,null,null,null,null,null,null,null,"4.451-08-08",22,50,88]
[null,null,null,null,null,null,null,null,null,null,null,null,null,null,null,null,null,null,null,null,null,null,null,"4.451-08-10",28,67,109]
[null,null,null,null,null,null,null,null,null,null,null,null,null,null,null,null,null,null,null,null,null,null,null,"4.451-08-12",31,74,120]
[null,null,null,null,null,null,null,null,null,null,null,null,null,null,null,null,null,null,null,null,null,null,null,"4.451-12-08",22,50,88]
[null,null,null,null,null,null,null,null,null,null,null,null,null,null,null,null,null,null,null,null,null,null,null,"4.451-12-10",29,64,106]
[null,null,null,null,null,null,null,null,null,null,null,null,null,null,null,null,null,null,null,null,null,null,null,"4.451-12-12",32,73,119]
[null,null,null,null,null,null,null,null,null,null,null,null,null,null,null,null,null,null,null,null,null,null,null,"4.451-12-16",36,87,142]
[null,null,null,null,null,null,null,null,null,null,null,null,null,null,null,null,null,null,null,null,null,null,null,"4.451-16-12",32,73,119]
[null,null,null,null,null,null,null,null,null,null,null,null,null,null,null,null,null,null,null,null,null,null,null,"4.451-16-16",37,84,139]
[null,null,null,null,null,null,null,null,null,null,null,null,null,null,null,null,null,null,null,null,null,null,null,"4.451-20-16",34,85,140]
[null,null,null,null,null,null,null,null,null,null,null,null,null,null,null,null,null,null,null,null,null,null,null,"4.470-08-08",42,42,80]
[null,null,null,null,null,null,null,null,null,null,null,null,null,null,null,null,null,null,null,null,null,null,null,"4.470-08-10",54,52,94]
[null,null,null,null,null,null,null,null,null,null,null,null,null,null,null,null,null,null,null,null,null,null,null,"4.470-08-12",60,60,106]
[null,null,null,null,null,null,null,null,null,null,null,null,null,null,null,null,null,null,null,null,null,null,null,"4.470-12-08",41,42,80]
[null,null,null,null,null,null,null,null,null,null,null,null,null,null,null,null,null,null,null,null,null,null,null,"4.470-12-10",54,52,94]
[null,null,null,null,null,null,null,null,null,null,null,null,null,null,null,null,null,null,null,null,null,null,null,"4.470-12-12",58,60,106]
[null,null,null,null,null,null,null,null,null,null,null,null,null,null,null,null,null,null,null,null,null,null,null,"4.470-12-16",69,65,120]
[null,null,null,null,null,null,null,null,null,null,null,null,null,null,null,null,null,null,null,null,null,null,null,"4.470-16-12",60,61,107]
[null,null,null,null,null,null,null,null,null,null,null,null,null,null,null,null,null,null,null,null,null,null,null,"4.470-16-16",69,65,120]
[null,null,null,null,null,null,null,null,null,null,null,null,null,null,null,null,null,null,null,null,null,null,null,"4.470-20-16",69,65,120]
[null,null,null,null,null,null,null,null,null,null,null,null,null,null,null,null,null,null,null,null,null,null,null,"4.471-08-08",44,39,77]
[null,null,null,null,null,null,null,null,null,null,null,null,null,null,null,null,null,null,null,null,null,null,null,"4.471-08-10",55,52,94]
[null,null,null,null,null,null,null,null,null,null,null,null,null,null,null,null,null,null,null,null,null,null,null,"4.471-08-12",61,60,106]
[null,null,null,null,null,null,null,null,null,null,null,null,null,null,null,null,null,null,null,null,null,null,null,"4.471-12-08",42,39,79]
[null,null,null,null,null,null,null,null,null,null,null,null,null,null,null,null,null,null,null,null,null,null,null,"4.471-12-10",55,52,94]
[null,null,null,null,null,null,null,null,null,null,null,null,null,null,null,null,null,null,null,null,null,null,null,"4.471-12-12",60,60,106]
[null,null,null,null,null,null,null,null,null,null,null,null,null,null,null,null,null,null,null,null,null,null,null,"4.471-12-16",72,65,120]
[null,null,null,null,null,null,null,null,null,null,null,null,null,null,null,null,null,null,null,null,null,null,null,"4.471-16-12",60,60,106]
[null,null,null,null,null,null,null,null,null,null,null,null,null,null,null,null,null,null,null,null,null,null,null,"4.471-16-16",72,65,120]
[null,null,null,null,null,null,null,null,null,null,null,null,null,null,null,null,null,null,null,null,null,null,null,"4.471-20-16",71,65,120]
[null,null,null,null,null,null,null,null,null,null,null,null,null,null,null,null,null,null,null,null,null,null,null,"5.081-10-12",null,38,79]
[null,null,null,null,null,null,null,null,null,null,null,null,null,null,null,null,null,null,null,null,null,null,null,"5.081-12-12/SW41",null,39,80]
[null,null,null,null,null,null,null,null,null,null,null,null,null,null,null,null,null,null,null,null,null,null,null,"5.081-12-12/SW46",null,39,80]
[null,null,null,null,null,null,null,null,null,null,null,null,null,null,null,null,null,null,null,null,null,null,null,"5.081-12-16/SW46",null,42,92]
[null,null,null,null,null,null,null,null,null,null,null,null,null,null,null,null,null,null,null,null,null,null,null,"5.081-16-12",null,40,78]
[null,null,null,null,null,null,null,null,null,null,null,null,null,null,null,null,null,null,null,null,null,null,null,"5.081-16-16",null,40,94]
[null,null,null,null,null,null,null,null,null,null,null,null,null,null,null,null,null,null,null,null,null,null,null,"5.081-16-20",null,36,105]
[null,null,null,null,null,null,null,null,null,null,null,null,null,null,null,null,null,null,null,null,null,null,null,"5.081-20-16",null,38,92]
[null,null,null,null,null,null,null,null,null,null,null,null,null,null,null,null,null,null,null,null,null,null,null,"5.081-20-20",null,41,110]
[null,null,null,null,null,null,null,null,null,null,null,null,null,null,null,null,null,null,null,null,null,null,null,"5.081-20-24",null,39,108]
[null,null,null,null,null,null,null,null,null,null,null,null,null,null,null,null,null,null,null,null,null,null,null,"5.085-10-12",37,81,122]
[null,null,null,null,null,null,null,null,null,null,null,null,null,null,null,null,null,null,null,null,null,null,null,"5.085-12-12/SW46",36,84,125]
[null,null,null,null,null,null,null,null,null,null,null,null,null,null,null,null,null,null,null,null,null,null,null,"5.085-12-16/SW46",40,97,149]
[null,null,null,null,null,null,null,null,null,null,null,null,null,null,null,null,null,null,null,null,null,null,null,"5.085-16-12",34,77,118]
[null,null,null,null,null,null,null,null,null,null,null,null,null,null,null,null,null,null,null,null,null,null,null,"5.085-16-16",41,96,148]
[null,null,null,null,null,null,null,null,null,null,null,null,null,null,null,null,null,null,null,null,null,null,null,"5.085-16-20",58,126,195]
[null,null,null,null,null,null,null,null,null,null,null,null,null,null,null,null,null,null,null,null,null,null,null,"5.085-20-16",40,97,149]
[null,null,null,null,null,null,null,null,null,null,null,null,null,null,null,null,null,null,null,null,null,null,null,"5.085-20-20",58,126,195]
[null,null,null,null,null,null,null,null,null,null,null,null,null,null,null,null,null,null,null,null,null,null,null,"5.085-20-24",55,126,195]
[null,null,null,null,null,null,null,null,null,null,null,null,null,null,null,null,null,null,null,null,null,null,null,"5.089-10-12",68,60,101]
[null,null,null,null,null,null,null,null,null,null,null,null,null,null,null,null,null,null,null,null,null,null,null,"5.089-12-12/SW46",70,60,101]
[null,null,null,null,null,null,null,null,null,null,null,null,null,null,null,null,null,null,null,null,null,null,null,"5.089-12-16/SW46",76,81,133]
[null,null,null,null,null,null,null,null,null,null,null,null,null,null,null,null,null,null,null,null,null,null,null,"5.089-16-12",67,60,101]
[null,null,null,null,null,null,null,null,null,null,null,null,null,null,null,null,null,null,null,null,null,null,null,"5.089-16-16",76,82,134]
[null,null,null,null,null,null,null,null,null,null,null,null,null,null,null,null,null,null,null,null,null,null,null,"5.089-16-20",108,102,171]
[null,null,null,null,null,null,null,null,null,null,null,null,null,null,null,null,null,null,null,null,null,null,null,"5.089-20-16",75,81,133]
[null,null,null,null,null,null,null,null,null,null,null,null,null,null,null,null,null,null,null,null,null,null,null,"5.089-20-20",108,102,171]
[null,null,null,null,null,null,null,null,null,null,null,null,null,null,null,null,null,null,null,null,null,null,null,"5.089-20-24",108,101,170]
[null,null,null,null,null,null,null,null,null,null,null,null,null,null,null,null,null,null,null,null,null,null,null,"5.420-08-12",null,51,92]
[null,null,null,null,null,null,null,null,null,null,null,null,null,null,null,null,null,null,null,null,null,null,null,"5.420-12-12",null,52,93]
[null,null,null,null,null,null,null,null,null,null,null,null,null,null,null,null,null,null,null,null,null,null,null,"5.420-12-16",null,56,108]
[null,null,null,null,null,null,null,null,null,null,null,null,null,null,null,null,null,null,null,null,null,null,null,"5.420-16-12",null,52,93]
[null,null,null,null,null,null,null,null,null,null,null,null,null,null,null,null,null,null,null,null,null,null,null,"5.420-16-16",null,56,108]
[null,null,null,null,null,null,null,null,null,null,null,null,null,null,null,null,null,null,null,null,null,null,null,"5.420-16-20",null,60,129]
[null,null,null,null,null,null,null,null,null,null,null,null,null,null,null,null,null,null,null,null,null,null,null,"5.420-20-16",null,55,107]
[null,null,null,null,null,null,null,null,null,null,null,null,null,null,null,null,null,null,null,null,null,null,null,"5.420-20-20",null,59,128]
[null,null,null,null,null,null,null,null,null,null,null,null,null,null,null,null,null,null,null,null,null,null,null,"5.420-20-24",null,60,129]
[null,null,null,null,null,null,null,null,null,null,null,null,null,null,null,null,null,null,null,null,null,null,null,"5.420-24-20",null,61,130]
[null,null,null,null,null,null,null,null,null,null,null,null,null,null,null,null,null,null,null,null,null,null,null,"5.420-24-24",null,62,131]
[null,null,null,null,null,null,null,null,null,null,null,null,null,null,null,null,null,null,null,null,null,null,null,"5.420-24-32",null,76,145]
[null,null,null,null,null,null,null,null,null,null,null,null,null,null,null,null,null,null,null,null,null,null,null,"5.420-32-24",null,62,131]
[null,null,null,null,null,null,null,null,null,null,null,null,null,null,null,null,null,null,null,null,null,null,null,"5.420-32-32",null,75,144]
[null,null,null,null,null,null,null,null,null,null,null,null,null,null,null,null,null,null,null,null,null,null,null,"5.421-08-12",null,52,93]
[null,null,null,null,null,null,null,null,null,null,null,null,null,null,null,null,null,null,null,null,null,null,null,"5.421-12-12",null,52,93]
[null,null,null,null,null,null,null,null,null,null,null,null,null,null,null,null,null,null,null,null,null,null,null,"5.421-12-16",null,57,109]
[null,null,null,null,null,null,null,null,null,null,null,null,null,null,null,null,null,null,null,null,null,null,null,"5.421-16-12",null,54,95]
[null,null,null,null,null,null,null,null,null,null,null,null,null,null,null,null,null,null,null,null,null,null,null,"5.421-16-16",null,58,110]
[null,null,null,null,null,null,null,null,null,null,null,null,null,null,null,null,null,null,null,null,null,null,null,"5.421-16-20",null,60,129]
[null,null,null,null,null,null,null,null,null,null,null,null,null,null,null,null,null,null,null,null,null,null,null,"5.421-20-16",null,59,111]
[null,null,null,null,null,null,null,null,null,null,null,null,null,null,null,null,null,null,null,null,null,null,null,"5.421-20-20",null,65,134]
[null,null,null,null,null,null,null,null,null,null,null,null,null,null,null,null,null,null,null,null,null,null,null,"5.421-20-24",null,64,133]
[null,null,null,null,null,null,null,null,null,null,null,null,null,null,null,null,null,null,null,null,null,null,null,"5.421-24-20",null,65,134]
[null,null,null,null,null,null,null,null,null,null,null,null,null,null,null,null,null,null,null,null,null,null,null,"5.421-24-24",null,66,135]
[null,null,null,null,null,null,null,null,null,null,null,null,null,null,null,null,null,null,null,null,null,null,null,"5.421-24-32",null,87,152]
[null,null,null,null,null,null,null,null,null,null,null,null,null,null,null,null,null,null,null,null,null,null,null,"5.421-32-24",null,75,144]
[null,null,null,null,null,null,null,null,null,null,null,null,null,null,null,null,null,null,null,null,null,null,null,"5.421-32-32",null,93,158]
[null,null,null,null,null,null,null,null,null,null,null,null,null,null,null,null,null,null,null,null,null,null,null,"5.450-08-12",34,77,118]
[null,null,null,null,null,null,null,null,null,null,null,null,null,null,null,null,null,null,null,null,null,null,null,"5.450-12-12",30,79,120]
[null,null,null,null,null,null,null,null,null,null,null,null,null,null,null,null,null,null,null,null,null,null,null,"5.450-12-16",32,88,140]
[null,null,null,null,null,null,null,null,null,null,null,null,null,null,null,null,null,null,null,null,null,null,null,"5.450-16-12",34,77,118]
[null,null,null,null,null,null,null,null,null,null,null,null,null,null,null,null,null,null,null,null,null,null,null,"5.450-16-16",32,88,140]
[null,null,null,null,null,null,null,null,null,null,null,null,null,null,null,null,null,null,null,null,null,null,null,"5.450-16-20",44,115,184]
[null,null,null,null,null,null,null,null,null,null,null,null,null,null,null,null,null,null,null,null,null,null,null,"5.450-20-16",32,88,140]
[null,null,null,null,null,null,null,null,null,null,null,null,null,null,null,null,null,null,null,null,null,null,null,"5.450-20-20",42,113,182]
[null,null,null,null,null,null,null,null,null,null,null,null,null,null,null,null,null,null,null,null,null,null,null,"5.450-20-24",50,113,182]
[null,null,null,null,null,null,null,null,null,null,null,null,null,null,null,null,null,null,null,null,null,null,null,"5.450-24-20",50,118,187]
[null,null,null,null,null,null,null,null,null,null,null,null,null,null,null,null,null,null,null,null,null,null,null,"5.450-24-24",50,102,171]
[null,null,null,null,null,null,null,null,null,null,null,null,null,null,null,null,null,null,null,null,null,null,null,"5.450-24-32",52,127,192]
[null,null,null,null,null,null,null,null,null,null,null,null,null,null,null,null,null,null,null,null,null,null,null,"5.450-32-24",45,116,185]
[null,null,null,null,null,null,null,null,null,null,null,null,null,null,null,null,null,null,null,null,null,null,null,"5.450-32-32",65,120,185]
[null,null,null,null,null,null,null,null,null,null,null,null,null,null,null,null,null,null,null,null,null,null,null,"5.451-08-12",33,79,120]
[null,null,null,null,null,null,null,null,null,null,null,null,null,null,null,null,null,null,null,null,null,null,null,"5.451-12-12",32,78,119]
[null,null,null,null,null,null,null,null,null,null,null,null,null,null,null,null,null,null,null,null,null,null,null,"5.451-12-16",35,93,145]
[null,null,null,null,null,null,null,null,null,null,null,null,null,null,null,null,null,null,null,null,null,null,null,"5.451-16-12",36,76,117]
[null,null,null,null,null,null,null,null,null,null,null,null,null,null,null,null,null,null,null,null,null,null,null,"5.451-16-16",38,92,144]
[null,null,null,null,null,null,null,null,null,null,null,null,null,null,null,null,null,null,null,null,null,null,null,"5.451-16-20",45,116,185]
[null,null,null,null,null,null,null,null,null,null,null,null,null,null,null,null,null,null,null,null,null,null,null,"5.451-20-16",35,93,145]
[null,null,null,null,null,null,null,null,null,null,null,null,null,null,null,null,null,null,null,null,null,null,null,"5.451-20-20",45,116,185]
[null,null,null,null,null,null,null,null,null,null,null,null,null,null,null,null,null,null,null,null,null,null,null,"5.451-20-24",53,131,200]
[null,null,null,null,null,null,null,null,null,null,null,null,null,null,null,null,null,null,null,null,null,null,null,"5.451-24-20",53,121,190]
[null,null,null,null,null,null,null,null,null,null,null,null,null,null,null,null,null,null,null,null,null,null,null,"5.451-24-24",53,116,185]
[null,null,null,null,null,null,null,null,null,null,null,null,null,null,null,null,null,null,null,null,null,null,null,"5.451-24-32",55,130,195]
[null,null,null,null,null,null,null,null,null,null,null,null,null,null,null,null,null,null,null,null,null,null,null,"5.451-32-24",55,126,195]
[null,null,null,null,null,null,null,null,null,null,null,null,null,null,null,null,null,null,null,null,null,null,null,"5.451-32-32",55,130,195]
[null,null,null,null,null,null,null,null,null,null,null,null,null,null,null,null,null,null,null,null,null,null,null,"5.470-08-12",61,60,101]
[null,null,null,null,null,null,null,null,null,null,null,null,null,null,null,null,null,null,null,null,null,null,null,"5.470-12-12",64,56,97]
[null,null,null,null,null,null,null,null,null,null,null,null,null,null,null,null,null,null,null,null,null,null,null,"5.470-12-16",62,81,133]
[null,null,null,null,null,null,null,null,null,null,null,null,null,null,null,null,null,null,null,null,null,null,null,"5.470-16-12",65,60,101]
[null,null,null,null,null,null,null,null,null,null,null,null,null,null,null,null,null,null,null,null,null,null,null,"5.470-16-16",62,81,133]
[null,null,null,null,null,null,null,null,null,null,null,null,null,null,null,null,null,null,null,null,null,null,null,"5.470-16-20",103,102,171]
[null,null,null,null,null,null,null,null,null,null,null,null,null,null,null,null,null,null,null,null,null,null,null,"5.470-20-16",62,81,133]
[null,null,null,null,null,null,null,null,null,null,null,null,null,null,null,null,null,null,null,null,null,null,null,"5.470-20-20",101,102,171]
[null,null,null,null,null,null,null,null,null,null,null,null,null,null,null,null,null,null,null,null,null,null,null,"5.470-20-24",109,101,170]
[null,null,null,null,null,null,null,null,null,null,null,null,null,null,null,null,null,null,null,null,null,null,null,"5.470-24-20",109,102,171]
[null,null,null,null,null,null,null,null,null,null,null,null,null,null,null,null,null,null,null,null,null,null,null,"5.470-24-24",109,101,170]
[null,null,null,null,null,null,null,null,null,null,null,null,null,null,null,null,null,null,null,null,null,null,null,"5.470-24-32",120,123,188]
[null,null,null,null,null,null,null,null,null,null,null,null,null,null,null,null,null,null,null,null,null,null,null,"5.470-32-24",111,101,170]
[null,null,null,null,null,null,null,null,null,null,null,null,null,null,null,null,null,null,null,null,null,null,null,"5.470-32-32",140,123,188]
[null,null,null,null,null,null,null,null,null,null,null,null,null,null,null,null,null,null,null,null,null,null,null,"5.471-08-12",66,60,101]
[null,null,null,null,null,null,null,null,null,null,null,null,null,null,null,null,null,null,null,null,null,null,null,"5.471-12-12",65,60,101]
[null,null,null,null,null,null,null,null,null,null,null,null,null,null,null,null,null,null,null,null,null,null,null,"5.471-12-16",72,81,133]
[null,null,null,null,null,null,null,null,null,null,null,null,null,null,null,null,null,null,null,null,null,null,null,"5.471-16-12",65,60,101]
[null,null,null,null,null,null,null,null,null,null,null,null,null,null,null,null,null,null,null,null,null,null,null,"5.471-16-16",72,81,133]
[null,null,null,null,null,null,null,null,null,null,null,null,null,null,null,null,null,null,null,null,null,null,null,"5.471-16-20",105,102,171]
[null,null,null,null,null,null,null,null,null,null,null,null,null,null,null,null,null,null,null,null,null,null,null,"5.471-20-16",90,81,133]
[null,null,null,null,null,null,null,null,null,null,null,null,null,null,null,null,null,null,null,null,null,null,null,"5.471-20-20",105,102,171]
[null,null,null,null,null,null,null,null,null,null,null,null,null,null,null,null,null,null,null,null,null,null,null,"5.471-20-24",113,101,170]
[null,null,null,null,null,null,null,null,null,null,null,null,null,null,null,null,null,null,null,null,null,null,null,"5.471-24-20",113,102,171]
[null,null,null,null,null,null,null,null,null,null,null,null,null,null,null,null,null,null,null,null,null,null,null,"5.471-24-24",113,101,170]
[null,null,null,null,null,null,null,null,null,null,null,null,null,null,null,null,null,null,null,null,null,null,null,"5.471-24-32",124,123,188]
[null,null,null,null,null,null,null,null,null,null,null,null,null,null,null,null,null,null,null,null,null,null,null,"5.471-32-24",124,101,170]
[null,null,null,null,null,null,null,null,null,null,null,null,null,null,null,null,null,null,null,null,null,null,null,"5.471-32-32",124,123,188]
[null,null,null,null,null,null,null,null,null,null,null,null,null,null,null,null,null,null,null,null,null,null,null,"7.081-10-10",null,38,85]
[null,null,null,null,null,null,null,null,null,null,null,null,null,null,null,null,null,null,null,null,null,null,null,"7.081-24-24",null,44,135]
[null,null,null,null,null,null,null,null,null,null,null,null,null,null,null,null,null,null,null,null,null,null,null,"7.421-12-12",null,54,110]
[null,null,null,null,null,null,null,null,null,null,null,null,null,null,null,null,null,null,null,null,null,null,null,"7.421-16-16",null,76,145]
[null,null,null,null,null,null,null,null,null,null,null,null,null,null,null,null,null,null,null,null,null,null,null,"7.421-20-20",null,60,140]
[null,null,null,null,null,null,null,null,null,null,null,null,null,null,null,null,null,null,null,null,null,null,null,"7.421-24-24",null,82,173]
[null,null,null,null,null,null,null,null,null,null,null,null,null,null,null,null,null,null,null,null,null,null,null,"7.421-32-32",null,101,192]
[null,null,null,null,null,null,null,null,null,null,null,null,null,null,null,null,null,null,null,null,null,null,null,"7.451-12-12",32,81,137]
[null,null,null,null,null,null,null,null,null,null,null,null,null,null,null,null,null,null,null,null,null,null,null,"7.451-16-16",44,108,178]
[null,null,null,null,null,null,null,null,null,null,null,null,null,null,null,null,null,null,null,null,null,null,null,"7.451-20-20",53,144,224]
[null,null,null,null,null,null,null,null,null,null,null,null,null,null,null,null,null,null,null,null,null,null,null,"7.451-24-24",59,158,249]
[null,null,null,null,null,null,null,null,null,null,null,null,null,null,null,null,null,null,null,null,null,null,null,"7.451-32-32",65,152,243]
[null,null,null,null,null,null,null,null,null,null,null,null,null,null,null,null,null,null,null,null,null,null,null,"7.471-12-12",64,63,119]
[null,null,null,null,null,null,null,null,null,null,null,null,null,null,null,null,null,null,null,null,null,null,null,"7.471-16-16",88,88,155]
[null,null,null,null,null,null,null,null,null,null,null,null,null,null,null,null,null,null,null,null,null,null,null,"7.471-20-20",108,117,197]
[null,null,null,null,null,null,null,null,null,null,null,null,null,null,null,null,null,null,null,null,null,null,null,"7.471-24-24",117,139,230]
[null,null,null,null,null,null,null,null,null,null,null,null,null,null,null,null,null,null,null,null,null,null,null,"7.471-32-32",140,133,224]
[null,null,null,null,null,null,null,null,null,null,null,null,null,null,null,null,null,null,null,null,null,null,null,"7.520-16-16",null,76,145]
[null,null,null,null,null,null,null,null,null,null,null,null,null,null,null,null,null,null,null,null,null,null,null,"7.520-20-16",null,90,159]
[null,null,null,null,null,null,null,null,null,null,null,null,null,null,null,null,null,null,null,null,null,null,null,"7.520-20-20",null,79,159]
[null,null,null,null,null,null,null,null,null,null,null,null,null,null,null,null,null,null,null,null,null,null,null,"7.520-24-20",null,82,162]
[null,null,null,null,null,null,null,null,null,null,null,null,null,null,null,null,null,null,null,null,null,null,null,"7.520-24-24",null,82,173]
[null,null,null,null,null,null,null,null,null,null,null,null,null,null,null,null,null,null,null,null,null,null,null,"7.520-32-32",null,101,192]
[null,null,null,null,null,null,null,null,null,null,null,null,null,null,null,null,null,null,null,null,null,null,null,"7.521-12-12",null,69,125]
[null,null,null,null,null,null,null,null,null,null,null,null,null,null,null,null,null,null,null,null,null,null,null,"7.521-16-16",null,79,145]
[null,null,null,null,null,null,null,null,null,null,null,null,null,null,null,null,null,null,null,null,null,null,null,"7.521-20-16",null,92,159]
[null,null,null,null,null,null,null,null,null,null,null,null,null,null,null,null,null,null,null,null,null,null,null,"7.521-20-20",null,79,159]
[null,null,null,null,null,null,null,null,null,null,null,null,null,null,null,null,null,null,null,null,null,null,null,"7.521-24-20",null,82,162]
[null,null,null,null,null,null,null,null,null,null,null,null,null,null,null,null,null,null,null,null,null,null,null,"7.521-24-24",null,82,173]
[null,null,null,null,null,null,null,null,null,null,null,null,null,null,null,null,null,null,null,null,null,null,null,"7.521-32-24",null,91,182]
[null,null,null,null,null,null,null,null,null,null,null,null,null,null,null,null,null,null,null,null,null,null,null,"7.521-32-32",null,101,192]
[null,null,null,null,null,null,null,null,null,null,null,null,null,null,null,null,null,null,null,null,null,null,null,"7.550-16-16",44,108,178]
[null,null,null,null,null,null,null,null,null,null,null,null,null,null,null,null,null,null,null,null,null,null,null,"7.550-20-16",47,131,200]
[null,null,null,null,null,null,null,null,null,null,null,null,null,null,null,null,null,null,null,null,null,null,null,"7.550-20-20",53,144,224]
[null,null,null,null,null,null,null,null,null,null,null,null,null,null,null,null,null,null,null,null,null,null,null,"7.550-24-20",58,149,229]
[null,null,null,null,null,null,null,null,null,null,null,null,null,null,null,null,null,null,null,null,null,null,null,"7.550-24-24",59,158,249]
[null,null,null,null,null,null,null,null,null,null,null,null,null,null,null,null,null,null,null,null,null,null,null,"7.550-32-32",58,157,248]
[null,null,null,null,null,null,null,null,null,null,null,null,null,null,null,null,null,null,null,null,null,null,null,"7.551-12-12",34,88,144]
[null,null,null,null,null,null,null,null,null,null,null,null,null,null,null,null,null,null,null,null,null,null,null,"7.551-16-16",44,108,175]
[null,null,null,null,null,null,null,null,null,null,null,null,null,null,null,null,null,null,null,null,null,null,null,"7.551-20-16",47,133,200]
[null,null,null,null,null,null,null,null,null,null,null,null,null,null,null,null,null,null,null,null,null,null,null,"7.551-20-20",53,144,224]
[null,null,null,null,null,null,null,null,null,null,null,null,null,null,null,null,null,null,null,null,null,null,null,"7.551-24-20",58,149,229]
[null,null,null,null,null,null,null,null,null,null,null,null,null,null,null,null,null,null,null,null,null,null,null,"7.551-24-24",59,158,249]
[null,null,null,null,null,null,null,null,null,null,null,null,null,null,null,null,null,null,null,null,null,null,null,"7.551-32-32",65,152,243]
[null,null,null,null,null,null,null,null,null,null,null,null,null,null,null,null,null,null,null,null,null,null,null,"7.570-16-16",85,89,158]
[null,null,null,null,null,null,null,null,null,null,null,null,null,null,null,null,null,null,null,null,null,null,null,"7.570-20-16",85,89,158]
[null,null,null,null,null,null,null,null,null,null,null,null,null,null,null,null,null,null,null,null,null,null,null,"7.570-20-20",108,117,197]
[null,null,null,null,null,null,null,null,null,null,null,null,null,null,null,null,null,null,null,null,null,null,null,"7.570-24-20",117,122,202]
[null,null,null,null,null,null,null,null,null,null,null,null,null,null,null,null,null,null,null,null,null,null,null,"7.570-24-24",117,139,230]
[null,null,null,null,null,null,null,null,null,null,null,null,null,null,null,null,null,null,null,null,null,null,null,"7.570-32-32",128,146,237]
[null,null,null,null,null,null,null,null,null,null,null,null,null,null,null,null,null,null,null,null,null,null,null,"7.571-12-12",68,66,122]
[null,null,null,null,null,null,null,null,null,null,null,null,null,null,null,null,null,null,null,null,null,null,null,"7.571-16-16",88,88,155]
[null,null,null,null,null,null,null,null,null,null,null,null,null,null,null,null,null,null,null,null,null,null,null,"7.571-20-16",88,93,160]
[null,null,null,null,null,null,null,null,null,null,null,null,null,null,null,null,null,null,null,null,null,null,null,"7.571-20-20",108,117,197]
[null,null,null,null,null,null,null,null,null,null,null,null,null,null,null,null,null,null,null,null,null,null,null,"7.571-24-20",117,122,202]
[null,null,null,null,null,null,null,null,null,null,null,null,null,null,null,null,null,null,null,null,null,null,null,"7.571-24-24",117,139,230]
[null,null,null,null,null,null,null,null,null,null,null,null,null,null,null,null,null,null,null,null,null,null,null,"7.571-32-24",145,150,242]
[null,null,null,null,null,null,null,null,null,null,null,null,null,null,null,null,null,null,null,null,null,null,null,"7.571-32-32",140,133,224]
[null,null,null,null,null,null,null,null,null,null,null,null,null,null,null,null,null,null,null,null,null,null,null,"7.581-12-12",null,48,104]
[null,null,null,null,null,null,null,null,null,null,null,null,null,null,null,null,null,null,null,null,null,null,null,"7.581-12-12/BH",null,50,104]
[null,null,null,null,null,null,null,null,null,null,null,null,null,null,null,null,null,null,null,null,null,null,null,"7.581-12-16",null,47,116]
[null,null,null,null,null,null,null,null,null,null,null,null,null,null,null,null,null,null,null,null,null,null,null,"7.581-16-16",null,52,121]
[null,null,null,null,null,null,null,null,null,null,null,null,null,null,null,null,null,null,null,null,null,null,null,"7.581-16-16/BH",null,52,121]
[null,null,null,null,null,null,null,null,null,null,null,null,null,null,null,null,null,null,null,null,null,null,null,"7.581-16-20",null,84,164]
[null,null,null,null,null,null,null,null,null,null,null,null,null,null,null,null,null,null,null,null,null,null,null,"7.581-20-16",null,57,126]
[null,null,null,null,null,null,null,null,null,null,null,null,null,null,null,null,null,null,null,null,null,null,null,"7.581-20-20",null,62,142]
[null,null,null,null,null,null,null,null,null,null,null,null,null,null,null,null,null,null,null,null,null,null,null,"7.581-20-20/BH",null,62,142]
[null,null,null,null,null,null,null,null,null,null,null,null,null,null,null,null,null,null,null,null,null,null,null,"7.581-20-24",null,69,161]
[null,null,null,null,null,null,null,null,null,null,null,null,null,null,null,null,null,null,null,null,null,null,null,"7.585-12-12",41,93,149]
[null,null,null,null,null,null,null,null,null,null,null,null,null,null,null,null,null,null,null,null,null,null,null,"7.585-12-16",44,103,172]
[null,null,null,null,null,null,null,null,null,null,null,null,null,null,null,null,null,null,null,null,null,null,null,"7.585-16-16",44,108,175]
[null,null,null,null,null,null,null,null,null,null,null,null,null,null,null,null,null,null,null,null,null,null,null,"7.585-20-16",44,103,172]
[null,null,null,null,null,null,null,null,null,null,null,null,null,null,null,null,null,null,null,null,null,null,null,"7.585-20-20",56,143,223]
[null,null,null,null,null,null,null,null,null,null,null,null,null,null,null,null,null,null,null,null,null,null,null,"7.585-20-24",52,133,223]
[null,null,null,null,null,null,null,null,null,null,null,null,null,null,null,null,null,null,null,null,null,null,null,"7.589-12-12",78,65,121]
[null,null,null,null,null,null,null,null,null,null,null,null,null,null,null,null,null,null,null,null,null,null,null,"7.589-12-16",86,84,153]
[null,null,null,null,null,null,null,null,null,null,null,null,null,null,null,null,null,null,null,null,null,null,null,"7.589-16-16",86,84,153]
[null,null,null,null,null,null,null,null,null,null,null,null,null,null,null,null,null,null,null,null,null,null,null,"7.589-20-16",90,84,153]
[null,null,null,null,null,null,null,null,null,null,null,null,null,null,null,null,null,null,null,null,null,null,null,"7.589-20-20",110,117,197]
[null,null,null,null,null,null,null,null,null,null,null,null,null,null,null,null,null,null,null,null,null,null,null,"7.589-20-24",110,134,225]
[null,null,null,null,null,null,null,null,null,null,null,null,null,null,null,null,null,null,null,null,null,null,null,"7.620-12-16"]
[null,null,null,null,null,null,null,null,null,null,null,null,null,null,null,null,null,null,null,null,null,null,null,"7.620-16-20"]
[null,null,null,null,null,null,null,null,null,null,null,null,null,null,null,null,null,null,null,null,null,null,null,"7.620-20-24"]
[null,null,null,null,null,null,null,null,null,null,null,null,null,null,null,null,null,null,null,null,null,null,null,"7.620-24-32"]
[null,null,null,null,null,null,null,null,null,null,null,null,null,null,null,null,null,null,null,null,null,null,null,"7.620-32-24"]
[null,null,null,null,null,null,null,null,null,null,null,null,null,null,null,null,null,null,null,null,null,null,null,"7.621-12-16",null,70,137]
[null,null,null,null,null,null,null,null,null,null,null,null,null,null,null,null,null,null,null,null,null,null,null,"7.621-16-20",null,78,158]
[null,null,null,null,null,null,null,null,null,null,null,null,null,null,null,null,null,null,null,null,null,null,null,"7.621-20-24",null,128,219]
[null,null,null,null,null,null,null,null,null,null,null,null,null,null,null,null,null,null,null,null,null,null,null,"7.621-24-32",null,148,239]
[null,null,null,null,null,null,null,null,null,null,null,null,null,null,null,null,null,null,null,null,null,null,null,"7.650-12-16"]
[null,null,null,null,null,null,null,null,null,null,null,null,null,null,null,null,null,null,null,null,null,null,null,"7.650-16-20"]
[null,null,null,null,null,null,null,null,null,null,null,null,null,null,null,null,null,null,null,null,null,null,null,"7.650-20-24"]
[null,null,null,null,null,null,null,null,null,null,null,null,null,null,null,null,null,null,null,null,null,null,null,"7.650-24-32"]
[null,null,null,null,null,null,null,null,null,null,null,null,null,null,null,null,null,null,null,null,null,null,null,"7.650-32-24"]
[null,null,null,null,null,null,null,null,null,null,null,null,null,null,null,null,null,null,null,null,null,null,null,"7.651-12-16",54,119,186]
[null,null,null,null,null,null,null,null,null,null,null,null,null,null,null,null,null,null,null,null,null,null,null,"7.651-16-20",69,154,234]
[null,null,null,null,null,null,null,null,null,null,null,null,null,null,null,null,null,null,null,null,null,null,null,"7.651-20-24",69,162,253]
[null,null,null,null,null,null,null,null,null,null,null,null,null,null,null,null,null,null,null,null,null,null,null,"7.651-24-32",90,181,272]
[null,null,null,null,null,null,null,null,null,null,null,null,null,null,null,null,null,null,null,null,null,null,null,"7.651-32-24",95,189,280]
[null,null,null,null,null,null,null,null,null,null,null,null,null,null,null,null,null,null,null,null,null,null,null,"7.670-12-16"]
[null,null,null,null,null,null,null,null,null,null,null,null,null,null,null,null,null,null,null,null,null,null,null,"7.670-16-20"]
[null,null,null,null,null,null,null,null,null,null,null,null,null,null,null,null,null,null,null,null,null,null,null,"7.670-20-24"]
[null,null,null,null,null,null,null,null,null,null,null,null,null,null,null,null,null,null,null,null,null,null,null,"7.670-24-32"]
[null,null,null,null,null,null,null,null,null,null,null,null,null,null,null,null,null,null,null,null,null,null,null,"7.670-32-24"]
[null,null,null,null,null,null,null,null,null,null,null,null,null,null,null,null,null,null,null,null,null,null,null,"7.671-12-16",111,88,155]
[null,null,null,null,null,null,null,null,null,null,null,null,null,null,null,null,null,null,null,null,null,null,null,"7.671-16-20",118,117,197]
[null,null,null,null,null,null,null,null,null,null,null,null,null,null,null,null,null,null,null,null,null,null,null,"7.671-20-24",137,139,230]
[null,null,null,null,null,null,null,null,null,null,null,null,null,null,null,null,null,null,null,null,null,null,null,"7.671-24-32",180,133,224]
[null,null,null,null,null,null,null,null,null,null,null,null,null,null,null,null,null,null,null,null,null,null,null,"7.789-16-12",82,72,126]

{"sheet":"Anfrage","index":4,"n_rows":59,"n_cols":11,"rows_kept":59,"cut":false,"hidden":false,"merged":[]}
[]
[]
[null,null,null,null,null,null,null,null,null,null,"i"]
[null,null,"Anfrage Schlauchfangsicherung",null,null,null,{"$f":"TODAY()","v":"2022-08-24"},null,null,null,0]
[]
[]
[null,null,"An:"]
[null,null,"Dietzel Hydraulik GmbH",null,null,"Tel.:","0049 36602 140 0"]
[null,null,"Leedenstraße 10"]
[null,null,"04626 Löbichau",null,null,"Email.:","Schlauchfangsicherung@dietzel-hydraulik.de"]
[]
[]
[null,null,"Absender:",null,null,{"$f":"+Eingabe!B9","v":"Ansprechpartner:"},{"$f":"+Eingabe!C9","v":"Herr Muster Mustermann"}]
[null,null,{"$f":"+Eingabe!C4","v":"Musterfirma"},null,null,{"$f":"+Eingabe!B10","v":"Tel.:"},{"$f":"+Eingabe!C10","v":"0049 1234567889"}]
[null,null,{"$f":"+Eingabe!C5","v":"Musterstraße"},null,null,{"$f":"+Eingabe!B11","v":"Fax:"},{"$f":"+Eingabe!C11","v":"0049 34567654"}]
[null,null,{"$f":"+Eingabe!C6","v":"07549"},null,null,{"$f":"+Eingabe!B12","v":"Email.:"},{"$f":"+Eingabe!C12","v":"muster@muster.de"}]
[]
[]
[null,null,"Wir bitten um Abgabe eines Angebotes über folgende Mengen:"]
[]
[null,null,null,"Anzahl",null,null,"Nummer"]
[]
[]
[]
[]
[]
[]
[]
[]
[]
[]
[]
[]
[]
[]
[]
[]
[]
[]
[]
[]
[]
[]
[]
[]
[]
[]
[]
[]
[]
[]
[]
[]
[]
[]
[null,null,null,null,null,null,"Unterschrift"]
[]
[]
[null,null,"Konfigurator:",{"$f":"+Auswahl!B2","v":"Stand: 24.05.2013 "}]

{"sheet":"Menü","index":5,"n_rows":22,"n_cols":10,"rows_kept":22,"cut":false,"hidden":false,"merged":[]}
[]
[]
[]
[]
[]
[]
[]
[null,null,null,null,"Herzlich Willkommen im Konfigurator für Schlauchfangsicherungen der Dietzel Hydraulik GmbH"]
[]
[null,null,null,null,"Sie befinden sich im Hauptmenü"]
[]
[null,null,null,null,"Sie haben nun folgende Auswahlmöglichkeiten:"]
[]
[]
[]
[]
[]
[]
[]
[]
[]
[null,null,null,null,null,null,null,null,"Konfigurator",{"$f":"+Auswahl!B2","v":"Stand: 24.05.2013 "}]